Workbook

Sheet Sayfa1
A1: a1 | B1: 70 | I1: w12 | J1: 10 | K1: s-1 | V1: x | W1: y | AA1: ölçek | AB1: 0.1
A2: a2 | B2: 35 | U2: A0 | V2: 0 | W2: 0
A3: a3 | B3: 62 | C3: AC | D3: 127 | E3: BC | F3: 84 | U3: A | V3: =+Krank*COS(B9) -> -15.34299014 | W3: =+Krank*SIN(B9) -> 31.45779162 | Y3: =+V5 -> 63.05444167 | Z3: =+W5 -> 131.3719682
A4: a4 | B4: 56 | C4: b | D4: =ACOS((B3^2+D3^2-F3^2)/(2*B3*D3)) -> 0.6089813561 | E4: =+Beta/D_R -> 34.8920615 | U4: B | V4: =+V7 -> 43.9515371 | W4: =+W7 -> 49.57295211 | Y4: =+AB1*S9+Y3 -> 33.31973837 | Z4: =+AB1*T9+Z3 -> 114.6769607
U5: C | V5: =+O9 -> 63.05444167 | W5: =+P9 -> 131.3719682
U6: A | V6: =+V3 -> -15.34299014 | W6: =+W3 -> 31.45779162
A7: q12 | F7: f | J7: Radyan | L7: Derece | U7: B | V7: =+V8+Sarkac*COS(K9) -> 43.9515371 | W7: =+W8+Sarkac*SIN(K9) -> 49.57295211
A8: Derece | B8: Radyan | C8: xs | D8: ys | E8: s | F8: Radyan | G8: Derece | H8: y | I8: m | J8: q13 | K8: q14 | L8: q13 | M8: q14 | N8: m | O8: xc | P8: yc | Q8: w13 | R8: w14 | S8: dxc | T8: dyc | U8: B0 | V8: =+Sabit -> 70 | W8: 0
A9: 116 | B9: =+A9*D_R -> 2.024581932 | C9: =-Sabit+Krank*COS(B9) -> -85.34299014 | D9: =+Krank*SIN(B9) -> 31.45779162 | E9: =+SQRT(C9^2+D9^2) -> 90.95613569 | F9: =+ATAN2(C9,D9) -> 2.788440944 | G9: =+F9/D_R -> 159.7658975 | H9: =ACOS((E9^2+Sarkac^2-Biyel^2)/2/E9/Sarkac) -> 0.7338392976 | I9: =+ACOS((Biyel^2+Sarkac^2-E9^2)/(2*Biyel*Sarkac)) -> 1.758096123 | J9: =+K9-I9 -> 0.2965055231 | K9: =+F9-H9 -> 2.054601646 | L9: =+J9/D_R -> 16.98851508 | M9: =+K9/D_R -> 117.7200029 | N9: =+I9/D_R -> 100.7314878 | O9: =+Krank*COS(B9)+AC*COS(J9+Beta) -> 63.05444167 | P9: =+Krank*SIN(B9)+AC*SIN(J9+Beta) -> 131.3719682 | Q9: =Krank/Biyel*SIN(B9-K9)/SIN(K9-J9)*$J$1 -> -0.1724568403 | R9: =Krank/Sarkac*SIN(B9-J9)/SIN(K9-J9)*$J$1 -> 6.282737251 | S9: =-Krank*$J$1*SIN(B9)-AC*Q9*SIN(J9+Beta) -> -297.347033 | T9: =+Krank*$J$1*COS(B9)+AC*Q9*COS(J9+Beta) -> -166.9500748
Q11: =+Q9-Q18 -> -3.135202124e-07 | R11: =+R9-R18 -> 2.037631909e-06 | S11: =+S9-S18 -> -0.0001327348743 | T11: -0.0001080242224
A14: q12 | F14: f | J14: Radyan | L14: Derece
A15: Derece | B15: Radyan | C15: xs | D15: ys | E15: s | F15: Radyan | G15: Derece | H15: y | I15: m | J15: q13 | K15: q14 | L15: q13 | M15: q14 | N15: m | O15: xc | P15: yc | Q15: w13 | R15: w14 | S15: dxc | T15: dyc | U15: a13 | V15: a14 | W15: ddxc | X15: ddyc
A16: =+A17-0.1 -> 115.8 | B16: =+A16*D_R -> 2.021091274 | C16: =-Sabit+Krank*COS(B16) -> -85.23308848 | D16: =+Krank*SIN(B16) -> 31.511157 | E16: =+SQRT(C16^2+D16^2) -> 90.87151582 | F16: =+ATAN2(C16,D16) -> 2.787471638 | G16: =+F16/D_R -> 159.7103604 | H16: =ACOS((E16^2+Sarkac^2-Biyel^2)/2/E16/Sarkac) -> 0.735063227 | I16: =+ACOS((Biyel^2+Sarkac^2-E16^2)/(2*Biyel*Sarkac)) -> 1.755841402 | J16: =+K16-I16 -> 0.2965670093 | K16: =+F16-H16 -> 2.052408411 | L16: =+J16/D_R -> 16.99203797 | M16: =+K16/D_R -> 117.5943398 | N16: =+I16/D_R -> 100.6023018 | O16: =+Krank*COS(B16)+AC*COS(J16+Beta) -> 63.15819985 | P16: =+Krank*SIN(B16)+AC*SIN(J16+Beta) -> 131.4301538
A17: =+A18-0.1 -> 115.9 | B17: 2.022836603 | C17: =-Sabit+Krank*COS(B17) -> -85.28806259 | D17: =+Krank*SIN(B17) -> 31.48452226 | E17: 90.91385353 | F17: 2.78795611 | G17: 159.7381186 | H17: =ACOS((E17^2+Sarkac^2-Biyel^2)/2/E17/Sarkac) -> 0.7344510455 | I17: =+ACOS((Biyel^2+Sarkac^2-E17^2)/(2*Biyel*Sarkac)) -> 1.756969121 | J17: 0.2965359444 | K17: 2.053505065 | L17: 16.99025809 | M17: 117.6571734 | N17: 100.6669153 | O17: =+Krank*COS(B17)+AC*COS(J17+Beta) -> 63.10632966 | P17: =+Krank*SIN(B17)+AC*SIN(J17+Beta) -> 131.4010838 | Q17: =+(J18-J16)/(0.2*D_R)*$J$1 -> -0.1761447811 | R17: =+(K18-K16)/(0.2*D_R)*$J$1 -> 6.283156593 | S17: =(O18-O16)/(0.2*D_R)*$J$1 -> -297.2452775 | T17: =(P18-P16)/(0.2*D_R)*$J$1 -> -166.6893057
A18: =+A9 -> 116 | B18: =+A18*D_R -> 2.024581932 | C18: =-Sabit+Krank*COS(B18) -> -85.34299014 | D18: =+Krank*SIN(B18) -> 31.45779162 | E18: =+SQRT(C18^2+D18^2) -> 90.95613569 | F18: =+ATAN2(C18,D18) -> 2.788440944 | G18: =+F18/D_R -> 159.7658975 | H18: =ACOS((E18^2+Sarkac^2-Biyel^2)/2/E18/Sarkac) -> 0.7338392976 | I18: =+ACOS((Biyel^2+Sarkac^2-E18^2)/(2*Biyel*Sarkac)) -> 1.758096123 | J18: =+K18-I18 -> 0.2965055231 | K18: =+F18-H18 -> 2.054601646 | L18: =+J18/D_R -> 16.98851508 | M18: =+K18/D_R -> 117.7200029 | N18: =+I18/D_R -> 100.7314878 | O18: =+Krank*COS(B18)+AC*COS(J18+Beta) -> 63.05444167 | P18: =+Krank*SIN(B18)+AC*SIN(J18+Beta) -> 131.3719682 | Q18: =+(J19-J17)/(0.2*D_R)*$J$1 -> -0.1724565268 | R18: 6.282735214 | S18: =(O19-O17)/(0.2*D_R)*$J$1 -> -297.3469003 | T18: -166.9499667 | U18: =+(Q19-Q17)/(0.2*D_R)*$J$1 -> 21.13752931 | V18: =+(R19-R17)/(0.2*D_R)*$J$1 -> -2.449347159 | W18: -579.9740568 | X18: -1491.620858
A19: =+A18+0.1 -> 116.1 | B19: =+A19*D_R -> 2.026327262 | C19: =-Sabit+Krank*COS(B19) -> -85.39787094 | D19: =+Krank*SIN(B19) -> 31.43096515 | E19: =+SQRT(C19^2+D19^2) -> 90.99836225 | F19: =+ATAN2(C19,D19) -> 2.788926138 | G19: =+F19/D_R -> 159.7936971 | H19: =ACOS((E19^2+Sarkac^2-Biyel^2)/2/E19/Sarkac) -> 0.7332279844 | I19: =+ACOS((Biyel^2+Sarkac^2-E19^2)/(2*Biyel*Sarkac)) -> 1.759222408 | J19: =+K19-I19 -> 0.2964757457 | K19: =+F19-H19 -> 2.055698153 | L19: =+J19/D_R -> 16.98680896 | M19: =+K19/D_R -> 117.7828281 | N19: =+I19/D_R -> 100.7960192 | O19: =+Krank*COS(B19)+AC*COS(J19+Beta) -> 63.00253602 | P19: =+Krank*SIN(B19)+AC*SIN(J19+Beta) -> 131.3428072 | Q19: -0.1687663914 | R19: 6.282301609 | S19: -297.4477266 | T19: -167.2099796
A20: =+A19+0.1 -> 116.2 | B20: 2.028072591 | C20: =-Sabit+Krank*COS(B20) -> -85.45270485 | D20: =+Krank*SIN(B20) -> 31.40404294 | E20: 91.04053316 | F20: 2.789411691 | G20: 159.8215172 | H20: =ACOS((E20^2+Sarkac^2-Biyel^2)/2/E20/Sarkac) -> 0.7326171072 | I20: =+ACOS((Biyel^2+Sarkac^2-E20^2)/(2*Biyel*Sarkac)) -> 1.760347971 | J20: 0.2964466126 | K20: 2.056794583 | L20: 16.98513975 | M20: 117.845649 | N20: 100.8605092 | O20: =+Krank*COS(B20)+AC*COS(J20+Beta) -> 62.95061283 | P20: =+Krank*SIN(B20)+AC*SIN(J20+Beta) -> 131.3136009
A23: q12 | F23: f | J23: Radyan | L23: Derece
A24: Derece | B24: Radyan | C24: xs | D24: ys | E24: s | F24: Radyan | G24: Derece | H24: y | I24: m | J24: q13 | K24: q14 | L24: q13 | M24: q14 | N24: m | O24: xc | P24: yc | Q24: w13 | R24: w14 | S24: dxc | T24: dyc
A25: 0 | B25: =+A25*D_R -> 0 | C25: =-Sabit+Krank*COS(B25) -> -35 | D25: =+Krank*SIN(B25) -> 0 | E25: =+SQRT(C25^2+D25^2) -> 35 | F25: =+ATAN2(C25,D25) -> 3.141592654 | G25: =+F25/D_R -> 180 | H25: =ACOS((E25^2+Sarkac^2-Biyel^2)/2/E25/Sarkac) -> 1.438523197 | I25: =+ACOS((Biyel^2+Sarkac^2-E25^2)/(2*Biyel*Sarkac)) -> 0.5938848386 | J25: =+K25-I25 -> 1.109184618 | K25: =+F25-H25 -> 1.703069457 | L25: =+J25/D_R -> 63.55159734 | M25: =+K25/D_R -> 97.57869211 | N25: =+I25/D_R -> 34.02709477 | O25: =+Krank*COS(B25)+AC*COS(J25+Beta) -> 16.35172612 | P25: =+Krank*SIN(B25)+AC*SIN(J25+Beta) -> 125.623413 | Q25: =Krank/Biyel*SIN(B25-K25)/SIN(K25-J25)*$J$1 -> -10 | R25: =Krank/Sarkac*SIN(B25-J25)/SIN(K25-J25)*$J$1 -> -10 | S25: =-Krank*$J$1*SIN(B25)-AC*Q25*SIN(J25+Beta) -> 1256.23413 | T25: =+Krank*$J$1*COS(B25)+AC*Q25*COS(J25+Beta) -> 536.4827388
A26: 5 | B26: =+A26*D_R -> 0.0872664626 | C26: =-Sabit+Krank*COS(B26) -> -35.13318557 | D26: =+Krank*SIN(B26) -> 3.050450996 | E26: =+SQRT(C26^2+D26^2) -> 35.26536515 | F26: =+ATAN2(C26,D26) -> 3.054984508 | G26: =+F26/D_R -> 175.0377188 | H26: =ACOS((E26^2+Sarkac^2-Biyel^2)/2/E26/Sarkac) -> 1.434760986 | I26: =+ACOS((Biyel^2+Sarkac^2-E26^2)/(2*Biyel*Sarkac)) -> 0.5986664699 | J26: =+K26-I26 -> 1.021557052 | K26: =+F26-H26 -> 1.620223522 | L26: =+J26/D_R -> 58.53090761 | M26: =+K26/D_R -> 92.83196967 | N26: =+I26/D_R -> 34.30106206 | O26: =+Krank*COS(B26)+AC*COS(J26+Beta) -> 27.2840826 | P26: =+Krank*SIN(B26)+AC*SIN(J26+Beta) -> 129.8238795 | Q26: =Krank/Biyel*SIN(B26-K26)/SIN(K26-J26)*$J$1 -> -10.0101266 | R26: =Krank/Sarkac*SIN(B26-J26)/SIN(K26-J26)*$J$1 -> -8.918795376 | S26: =-Krank*$J$1*SIN(B26)-AC*Q26*SIN(J26+Beta) -> 1238.513558 | T26: =+Krank*$J$1*COS(B26)+AC*Q26*COS(J26+Beta) -> 424.57225
A27: 10 | B27: 0.1745329252 | C27: =-Sabit+Krank*COS(B27) -> -35.53172864 | D27: =+Krank*SIN(B27) -> 6.077686218 | E27: 36.047774 | F27: 2.972182603 | G27: 170.2935191 | H27: =ACOS((E27^2+Sarkac^2-Biyel^2)/2/E27/Sarkac) -> 1.423774641 | I27: =+ACOS((Biyel^2+Sarkac^2-E27^2)/(2*Biyel*Sarkac)) -> 0.6127792614 | J27: 0.9356287003 | K27: 1.548407962 | L27: 53.60757572 | M27: 88.71724117 | N27: 35.10966545 | O27: =+Krank*COS(B27)+AC*COS(J27+Beta) -> 37.79354764 | P27: =+Krank*SIN(B27)+AC*SIN(J27+Beta) -> 133.0341454 | Q27: =Krank/Biyel*SIN(B27-K27)/SIN(K27-J27)*$J$1 -> -9.625533141 | R27: =Krank/Sarkac*SIN(B27-J27)/SIN(K27-J27)*$J$1 -> -7.495037929 | S27: =-Krank*$J$1*SIN(B27)-AC*Q27*SIN(J27+Beta) -> 1161.246744 | T27: =+Krank*$J$1*COS(B27)+AC*Q27*COS(J27+Beta) -> 312.6751565
A28: 15 | B28: 0.2617993878 | C28: =-Sabit+Krank*COS(B28) -> -36.19259608 | D28: =+Krank*SIN(B28) -> 9.058666579 | E28: 37.3090264 | F28: 2.896340504 | G28: 165.9480869 | H28: =ACOS((E28^2+Sarkac^2-Biyel^2)/2/E28/Sarkac) -> 1.40637447 | I28: =+ACOS((Biyel^2+Sarkac^2-E28^2)/(2*Biyel*Sarkac)) -> 0.6355778985 | J28: 0.8543881351 | K28: 1.489966034 | L28: 48.95283421 | M28: 85.36876534 | N28: 36.41593114 | O28: =+Krank*COS(B28)+AC*COS(J28+Beta) -> 47.42438555 | P28: =+Krank*SIN(B28)+AC*SIN(J28+Beta) -> 135.3265477 | Q28: =Krank/Biyel*SIN(B28-K28)/SIN(K28-J28)*$J$1 -> -8.956622317 | R28: =Krank/Sarkac*SIN(B28-J28)/SIN(K28-J28)*$J$1 -> -5.880118258 | S28: =-Krank*$J$1*SIN(B28)-AC*Q28*SIN(J28+Beta) -> 1040.347056 | T28: =+Krank*$J$1*COS(B28)+AC*Q28*COS(J28+Beta) -> 216.1118776
A29: 20 | B29: 0.3490658504 | C29: =-Sabit+Krank*COS(B29) -> -37.11075827 | D29: =+Krank*SIN(B29) -> 11.97070502 | E29: 38.99366818 | F29: 2.829562914 | G29: 162.1220129 | H29: =ACOS((E29^2+Sarkac^2-Biyel^2)/2/E29/Sarkac) -> 1.383662509 | I29: =+ACOS((Biyel^2+Sarkac^2-E29^2)/(2*Biyel*Sarkac)) -> 0.6661325486 | J29: 0.7797678562 | K29: 1.445900405 | L29: 44.67740716 | M29: 82.84399079 | N29: 38.16658363 | O29: =+Krank*COS(B29)+AC*COS(J29+Beta) -> 55.8817329 | P29: =+Krank*SIN(B29)+AC*SIN(J29+Beta) -> 136.8720475 | Q29: =Krank/Biyel*SIN(B29-K29)/SIN(K29-J29)*$J$1 -> -8.128293428 | R29: =Krank/Sarkac*SIN(B29-J29)/SIN(K29-J29)*$J$1 -> -4.222720559 | S29: =-Krank*$J$1*SIN(B29)-AC*Q29*SIN(J29+Beta) -> 895.527711 | T29: =+Krank*$J$1*COS(B29)+AC*Q29*COS(J29+Beta) -> 142.0027024
A30: 25 | B30: 0.436332313 | C30: =-Sabit+Krank*COS(B30) -> -38.27922745 | D30: =+Krank*SIN(B30) -> 14.79163916 | E30: 41.03768809 | F30: 2.772852708 | G30: 158.8727574 | H30: =ACOS((E30^2+Sarkac^2-Biyel^2)/2/E30/Sarkac) -> 1.356798378 | I30: =+ACOS((Biyel^2+Sarkac^2-E30^2)/(2*Biyel*Sarkac)) -> 0.703381209 | J30: 0.712673121 | K30: 1.41605433 | L30: 40.833162 | M30: 81.13393667 | N30: 40.30077466 | O30: =+Krank*COS(B30)+AC*COS(J30+Beta) -> 63.03546682 | P30: =+Krank*SIN(B30)+AC*SIN(J30+Beta) -> 137.8704347 | Q30: =Krank/Biyel*SIN(B30-K30)/SIN(K30-J30)*$J$1 -> -7.247088209 | R30: =Krank/Sarkac*SIN(B30-J30)/SIN(K30-J30)*$J$1 -> -2.636412738 | S30: =-Krank*$J$1*SIN(B30)-AC*Q30*SIN(J30+Beta) -> 744.0464967 | T30: =+Krank*$J$1*COS(B30)+AC*Q30*COS(J30+Beta) -> 90.26737382
A31: 30 | B31: 0.5235987756 | C31: =-Sabit+Krank*COS(B31) -> -39.68911087 | D31: =+Krank*SIN(B31) -> 17.5 | E31: 43.37597862 | F31: 2.726309415 | G31: 156.2060231 | H31: =ACOS((E31^2+Sarkac^2-Biyel^2)/2/E31/Sarkac) -> 1.326833675 | I31: =+ACOS((Biyel^2+Sarkac^2-E31^2)/(2*Biyel*Sarkac)) -> 0.746257877 | J31: 0.6532178628 | K31: 1.39947574 | L31: 37.42662664 | M31: 80.18405342 | N31: 42.75742678 | O31: =+Krank*COS(B31)+AC*COS(J31+Beta) -> 68.8836232 | P31: =+Krank*SIN(B31)+AC*SIN(J31+Beta) -> 138.5005958 | Q31: =Krank/Biyel*SIN(B31-K31)/SIN(K31-J31)*$J$1 -> -6.386956188 | R31: =Krank/Sarkac*SIN(B31-J31)/SIN(K31-J31)*$J$1 -> -1.189950753 | S31: =-Krank*$J$1*SIN(B31)-AC*Q31*SIN(J31+Beta) -> 597.8255041 | T31: =+Krank*$J$1*COS(B31)+AC*Q31*COS(J31+Beta) -> 56.74652879
A32: 35 | B32: 0.6108652382 | C32: =-Sabit+Krank*COS(B32) -> -41.32967845 | D32: =+Krank*SIN(B32) -> 20.07517527 | E32: 45.94730659 | F32: 2.689423912 | G32: 154.0926395 | H32: =ACOS((E32^2+Sarkac^2-Biyel^2)/2/E32/Sarkac) -> 1.294635618 | I32: =+ACOS((Biyel^2+Sarkac^2-E32^2)/(2*Biyel*Sarkac)) -> 0.7937752338 | J32: 0.6010130609 | K32: 1.394788295 | L32: 34.43551182 | M32: 79.9154826 | N32: 45.47997078 | O32: =+Krank*COS(B32)+AC*COS(J32+Beta) -> 73.5044489 | P32: =+Krank*SIN(B32)+AC*SIN(J32+Beta) -> 138.8981572 | Q32: =Krank/Biyel*SIN(B32-K32)/SIN(K32-J32)*$J$1 -> -5.59019517 | R32: =Krank/Sarkac*SIN(B32-J32)/SIN(K32-J32)*$J$1 -> 0.08635995373 | S32: =-Krank*$J$1*SIN(B32)-AC*Q32*SIN(J32+Beta) -> 463.4919067 | T32: =+Krank*$J$1*COS(B32)+AC*Q32*COS(J32+Beta) -> 36.07169334
A33: 40 | B33: 0.6981317008 | C33: =-Sabit+Krank*COS(B33) -> -43.18844449 | D33: =+Krank*SIN(B33) -> 22.49756634 | E33: 48.69684003 | F33: 2.661352334 | G33: 152.4842565 | H33: =ACOS((E33^2+Sarkac^2-Biyel^2)/2/E33/Sarkac) -> 1.260877501 | I33: =+ACOS((Biyel^2+Sarkac^2-E33^2)/(2*Biyel*Sarkac)) -> 0.8450639681 | J33: 0.5554108639 | K33: 1.400474832 | L33: 31.8226984 | M33: 80.24129719 | N33: 48.41859879 | O33: =+Krank*COS(B33)+AC*COS(J33+Beta) -> 77.01578447 | P33: =+Krank*SIN(B33)+AC*SIN(J33+Beta) -> 139.1531937 | Q33: =Krank/Biyel*SIN(B33-K33)/SIN(K33-J33)*$J$1 -> -4.875338832 | R33: =Krank/Sarkac*SIN(B33-J33)/SIN(K33-J33)*$J$1 -> 1.18845447 | S33: =-Krank*$J$1*SIN(B33)-AC*Q33*SIN(J33+Beta) -> 343.7600466 | T33: =+Krank*$J$1*COS(B33)+AC*Q33*COS(J33+Beta) -> 23.3529281
A34: 45 | B34: 0.7853981634 | C34: =-Sabit+Krank*COS(B34) -> -45.25126266 | D34: =+Krank*SIN(B34) -> 24.74873734 | E34: 51.57690154 | F34: 2.641118617 | G34: 151.3249499 | H34: =ACOS((E34^2+Sarkac^2-Biyel^2)/2/E34/Sarkac) -> 1.226063878 | I34: =+ACOS((Biyel^2+Sarkac^2-E34^2)/(2*Biyel*Sarkac)) -> 0.8993814721 | J34: 0.5156732664 | K34: 1.415054739 | L34: 29.54590177 | M34: 81.0766643 | N34: 51.53076253 | O34: =+Krank*COS(B34)+AC*COS(J34+Beta) -> 79.54772782 | P34: =+Krank*SIN(B34)+AC*SIN(J34+Beta) -> 139.3178023 | Q34: =Krank/Biyel*SIN(B34-K34)/SIN(K34-J34)*$J$1 -> -4.245843622 | R34: =Krank/Sarkac*SIN(B34-J34)/SIN(K34-J34)*$J$1 -> 2.127122732 | S34: =-Krank*$J$1*SIN(B34)-AC*Q34*SIN(J34+Beta) -> 238.9549603 | T34: =+Krank*$J$1*COS(B34)+AC*Q34*COS(J34+Beta) -> 14.81942919
A35: 50 | B35: 0.872664626 | C35: =-Sabit+Krank*COS(B35) -> -47.50243366 | D35: =+Krank*SIN(B35) -> 26.81155551 | E35: 54.54668379 | F35: 2.627742171 | G35: 150.5585361 | H35: =ACOS((E35^2+Sarkac^2-Biyel^2)/2/E35/Sarkac) -> 1.190566688 | I35: =+ACOS((Biyel^2+Sarkac^2-E35^2)/(2*Biyel*Sarkac)) -> 0.9561032031 | J35: 0.48107228 | K35: 1.437175483 | L35: 27.56341128 | M35: 82.3440896 | N35: 54.78067832 | O35: =+Krank*COS(B35)+AC*COS(J35+Beta) -> 81.22716834 | P35: =+Krank*SIN(B35)+AC*SIN(J35+Beta) -> 139.4163238 | Q35: =Krank/Biyel*SIN(B35-K35)/SIN(K35-J35)*$J$1 -> -3.696890152 | R35: =Krank/Sarkac*SIN(B35-J35)/SIN(K35-J35)*$J$1 -> 2.919858095 | S35: =-Krank*$J$1*SIN(B35)-AC*Q35*SIN(J35+Beta) -> 148.171904 | T35: =+Krank*$J$1*COS(B35)+AC*Q35*COS(J35+Beta) -> 7.858776107
A36: 55 | B36: 0.9599310886 | C36: =-Sabit+Krank*COS(B36) -> -49.92482473 | D36: =+Krank*SIN(B36) -> 28.67032155 | E36: 57.57148132 | F36: 2.620307275 | G36: 150.1325479 | H36: =ACOS((E36^2+Sarkac^2-Biyel^2)/2/E36/Sarkac) -> 1.154659832 | I36: =+ACOS((Biyel^2+Sarkac^2-E36^2)/(2*Biyel*Sarkac)) -> 1.014706399 | J36: 0.4509410442 | K36: 1.465647443 | L36: 25.83701864 | M36: 83.97541275 | N36: 58.13839411 | O36: =+Krank*COS(B36)+AC*COS(J36+Beta) -> 82.17052669 | P36: =+Krank*SIN(B36)+AC*SIN(J36+Beta) -> 139.4546496 | Q36: =Krank/Biyel*SIN(B36-K36)/SIN(K36-J36)*$J$1 -> -3.219859929 | R36: =Krank/Sarkac*SIN(B36-J36)/SIN(K36-J36)*$J$1 -> 3.585900697 | S36: =-Krank*$J$1*SIN(B36)-AC*Q36*SIN(J36+Beta) -> 70.00680304 | T36: =+Krank*$J$1*COS(B36)+AC*Q36*COS(J36+Beta) -> 0.8134188996
A37: 60 | B37: 1.047197551 | C37: =-Sabit+Krank*COS(B37) -> -52.5 | D37: =+Krank*SIN(B37) -> 30.31088913 | E37: 60.62177826 | F37: 2.617993878 | G37: 150 | H37: =ACOS((E37^2+Sarkac^2-Biyel^2)/2/E37/Sarkac) -> 1.118547537 | I37: =+ACOS((Biyel^2+Sarkac^2-E37^2)/(2*Biyel*Sarkac)) -> 1.074751893 | J37: 0.4246944481 | K37: 1.499446341 | L37: 24.33319946 | M37: 85.91194697 | N37: 61.57874751 | O37: =+Krank*COS(B37)+AC*COS(J37+Beta) -> 82.48134209 | P37: =+Krank*SIN(B37)+AC*SIN(J37+Beta) -> 139.4274561 | Q37: =Krank/Biyel*SIN(B37-K37)/SIN(K37-J37)*$J$1 -> -2.804950132 | R37: =Krank/Sarkac*SIN(B37-J37)/SIN(K37-J37)*$J$1 -> 4.143611874 | S37: =-Krank*$J$1*SIN(B37)-AC*Q37*SIN(J37+Beta) -> 2.957637568 | T37: =+Krank*$J$1*COS(B37)+AC*Q37*COS(J37+Beta) -> -7.26942409
A38: 65 | B38: 1.134464014 | C38: =-Sabit+Krank*COS(B38) -> -55.20836084 | D38: =+Krank*SIN(B38) -> 31.72077255 | E38: 63.67236856 | F38: 2.620085612 | G38: 150.1198475 | H38: =ACOS((E38^2+Sarkac^2-Biyel^2)/2/E38/Sarkac) -> 1.082385938 | I38: =+ACOS((Biyel^2+Sarkac^2-E38^2)/(2*Biyel*Sarkac)) -> 1.135866887 | J38: 0.4018327875 | K38: 1.537699674 | L38: 23.0233228 | M38: 88.10370149 | N38: 65.0803787 | O38: =+Krank*COS(B38)+AC*COS(J38+Beta) -> 82.25036917 | P38: =+Krank*SIN(B38)+AC*SIN(J38+Beta) -> 139.3233736 | Q38: =Krank/Biyel*SIN(B38-K38)/SIN(K38-J38)*$J$1 -> -2.442543063 | R38: =Krank/Sarkac*SIN(B38-J38)/SIN(K38-J38)*$J$1 -> 4.609302382 | S38: =-Krank*$J$1*SIN(B38)-AC*Q38*SIN(J38+Beta) -> -54.38373879 | T38: =+Krank*$J$1*COS(B38)+AC*Q38*COS(J38+Beta) -> -16.85446143
A39: 70 | B39: 1.221730476 | C39: =-Sabit+Krank*COS(B39) -> -58.02929498 | D39: =+Krank*SIN(B39) -> 32.88924173 | E39: 66.70158392 | F39: 2.625965717 | G39: 150.4567527 | H39: =ACOS((E39^2+Sarkac^2-Biyel^2)/2/E39/Sarkac) -> 1.046298885 | I39: =+ACOS((Biyel^2+Sarkac^2-E39^2)/(2*Biyel*Sarkac)) -> 1.197729794 | J39: 0.3819370372 | K39: 1.579666831 | L39: 21.88338027 | M39: 90.50824248 | N39: 68.62486221 | O39: =+Krank*COS(B39)+AC*COS(J39+Beta) -> 81.55677726 | P39: =+Krank*SIN(B39)+AC*SIN(J39+Beta) -> 139.1284932 | Q39: =Krank/Biyel*SIN(B39-K39)/SIN(K39-J39)*$J$1 -> -2.123827266 | R39: =Krank/Sarkac*SIN(B39-J39)/SIN(K39-J39)*$J$1 -> 4.996872267 | S39: =-Krank*$J$1*SIN(B39)-AC*Q39*SIN(J39+Beta) -> -103.2585984 | T39: =+Krank*$J$1*COS(B39)+AC*Q39*COS(J39+Beta) -> -28.08174736
A40: 75 | B40: 1.308996939 | C40: =-Sabit+Krank*COS(B40) -> -60.94133342 | D40: =+Krank*SIN(B40) -> 33.80740392 | E40: 69.69064987 | F40: 2.635107426 | G40: 150.9805341 | H40: =ACOS((E40^2+Sarkac^2-Biyel^2)/2/E40/Sarkac) -> 1.010389355 | I40: =+ACOS((Biyel^2+Sarkac^2-E40^2)/(2*Biyel*Sarkac)) -> 1.260057369 | J40: 0.3646607014 | K40: 1.624718071 | L40: 20.89351915 | M40: 93.08948836 | N40: 72.19596921 | O40: =+Krank*COS(B40)+AC*COS(J40+Beta) -> 80.46968802 | P40: =+Krank*SIN(B40)+AC*SIN(J40+Beta) -> 138.8286685 | Q40: =Krank/Biyel*SIN(B40-K40)/SIN(K40-J40)*$J$1 -> -1.841003657 | R40: =Krank/Sarkac*SIN(B40-J40)/SIN(K40-J40)*$J$1 -> 5.317858238 | S40: =-Krank*$J$1*SIN(B40)-AC*Q40*SIN(J40+Beta) -> -144.729507 | T40: =+Krank*$J$1*COS(B40)+AC*Q40*COS(J40+Beta) -> -40.88128585
A41: 80 | B41: 1.396263402 | C41: =-Sabit+Krank*COS(B41) -> -63.92231378 | D41: =+Krank*SIN(B41) -> 34.46827136 | E41: 72.62316386 | F41: 2.647062504 | G41: 151.6655096 | H41: =ACOS((E41^2+Sarkac^2-Biyel^2)/2/E41/Sarkac) -> 0.9747477065 | I41: =+ACOS((Biyel^2+Sarkac^2-E41^2)/(2*Biyel*Sarkac)) -> 1.322593893 | J41: 0.3497209044 | K41: 1.672314797 | L41: 20.03753183 | M41: 95.81657989 | N41: 75.77904806 | O41: =+Krank*COS(B41)+AC*COS(J41+Beta) -> 79.04967644 | P41: =+Krank*SIN(B41)+AC*SIN(J41+Beta) -> 138.4109894 | Q41: =Krank/Biyel*SIN(B41-K41)/SIN(K41-J41)*$J$1 -> -1.587278929 | R41: =Krank/Sarkac*SIN(B41-J41)/SIN(K41-J41)*$J$1 -> 5.581657211 | S41: =-Krank*$J$1*SIN(B41)-AC*Q41*SIN(J41+Beta) -> -179.6966273 | T41: =+Krank*$J$1*COS(B41)+AC*Q41*COS(J41+Beta) -> -55.05004029
A42: 85 | B42: 1.483529864 | C42: =-Sabit+Krank*COS(B42) -> -66.949549 | D42: =+Krank*SIN(B42) -> 34.86681443 | E42: 75.48467964 | F42: 2.661449845 | G42: 152.4898435 | H42: =ACOS((E42^2+Sarkac^2-Biyel^2)/2/E42/Sarkac) -> 0.9394577584 | I42: =+ACOS((Biyel^2+Sarkac^2-E42^2)/(2*Biyel*Sarkac)) -> 1.385102061 | J42: 0.3368900261 | K42: 1.721992087 | L42: 19.30237665 | M42: 98.66287893 | N42: 79.36050228 | O42: =+Krank*COS(B42)+AC*COS(J42+Beta) -> 77.35007433 | P42: =+Krank*SIN(B42)+AC*SIN(J42+Beta) -> 137.8647075 | Q42: =Krank/Biyel*SIN(B42-K42)/SIN(K42-J42)*$J$1 -> -1.356760915 | R42: =Krank/Sarkac*SIN(B42-J42)/SIN(K42-J42)*$J$1 -> 5.795803468 | S42: =-Krank*$J$1*SIN(B42)-AC*Q42*SIN(J42+Beta) -> -208.9246287 | T42: =+Krank*$J$1*COS(B42)+AC*Q42*COS(J42+Beta) -> -70.30231496
A43: 90 | B43: 1.570796327 | C43: =-Sabit+Krank*COS(B43) -> -70 | D43: =+Krank*SIN(B43) -> 35 | E43: 78.26237921 | F43: 2.677945045 | G43: 153.4349488 | H43: =ACOS((E43^2+Sarkac^2-Biyel^2)/2/E43/Sarkac) -> 0.9046014107 | I43: =+ACOS((Biyel^2+Sarkac^2-E43^2)/(2*Biyel*Sarkac)) -> 1.447355192 | J43: 0.325988442 | K43: 1.773343634 | L43: 18.6777619 | M43: 101.6051059 | N43: 82.92734395 | O43: =+Krank*COS(B43)+AC*COS(J43+Beta) -> 75.41802627 | P43: =+Krank*SIN(B43)+AC*SIN(J43+Beta) -> 137.1818052 | Q43: =Krank/Biyel*SIN(B43-K43)/SIN(K43-J43)*$J$1 -> -1.144317405 | R43: =Krank/Sarkac*SIN(B43-J43)/SIN(K43-J43)*$J$1 -> 5.966239769 | S43: =-Krank*$J$1*SIN(B43)-AC*Q43*SIN(J43+Beta) -> -233.0715818 | T43: =+Krank*$J$1*COS(B43)+AC*Q43*COS(J43+Beta) -> -86.30216013
A44: 95 | B44: 1.658062789 | C44: =-Sabit+Krank*COS(B44) -> -73.050451 | D44: =+Krank*SIN(B44) -> 34.86681443 | E44: 80.9448154 | F44: 2.696271246 | G44: 154.4849628 | H44: =ACOS((E44^2+Sarkac^2-Biyel^2)/2/E44/Sarkac) -> 0.8702623123 | I44: =+ACOS((Biyel^2+Sarkac^2-E44^2)/(2*Biyel*Sarkac)) -> 1.509130399 | J44: 0.3168785341 | K44: 1.826008934 | L44: 18.15580262 | M44: 104.6226052 | N44: 86.46680263 | O44: =+Krank*COS(B44)+AC*COS(J44+Beta) -> 73.29529977 | P44: =+Krank*SIN(B44)+AC*SIN(J44+Beta) -> 136.3573378 | Q44: =Krank/Biyel*SIN(B44-K44)/SIN(K44-J44)*$J$1 -> -0.945429446 | R44: =Krank/Sarkac*SIN(B44-J44)/SIN(K44-J44)*$J$1 -> 6.09755713 | S44: =-Krank*$J$1*SIN(B44)-AC*Q44*SIN(J44+Beta) -> -252.716015 | T44: =+Krank*$J$1*COS(B44)+AC*Q44*COS(J44+Beta) -> -102.6840308
A45: 100 | B45: 1.745329252 | C45: =-Sabit+Krank*COS(B45) -> -76.07768622 | D45: =+Krank*SIN(B45) -> 34.46827136 | E45: 83.52171018 | F45: 2.71619133 | G45: 155.6262996 | H45: =ACOS((E45^2+Sarkac^2-Biyel^2)/2/E45/Sarkac) -> 0.8365289379 | I45: =+ACOS((Biyel^2+Sarkac^2-E45^2)/(2*Biyel*Sarkac)) -> 1.570202443 | J45: 0.3094599495 | K45: 1.879662392 | L45: 17.73074903 | M45: 107.696722 | N45: 89.96597296 | O45: =+Krank*COS(B45)+AC*COS(J45+Beta) -> 71.01887283 | P45: =+Krank*SIN(B45)+AC*SIN(J45+Beta) -> 135.3896298 | Q45: =Krank/Biyel*SIN(B45-K45)/SIN(K45-J45)*$J$1 -> -0.7560537005 | R45: =Krank/Sarkac*SIN(B45-J45)/SIN(K45-J45)*$J$1 -> 6.193195782 | S45: =-Krank*$J$1*SIN(B45)-AC*Q45*SIN(J45+Beta) -> -268.3807471 | T45: =+Krank*$J$1*COS(B45)+AC*Q45*COS(J45+Beta) -> -119.0660009
A46: 105 | B46: 1.832595715 | C46: =-Sabit+Krank*COS(B46) -> -79.05866658 | D46: =+Krank*SIN(B46) -> 33.80740392 | E46: 85.98379685 | F46: 2.737501334 | G46: 156.8472729 | H46: =ACOS((E46^2+Sarkac^2-Biyel^2)/2/E46/Sarkac) -> 0.8034973102 | I46: =+ACOS((Biyel^2+Sarkac^2-E46^2)/(2*Biyel*Sarkac)) -> 1.630338029 | J46: 0.3036659957 | K46: 1.934004024 | L46: 17.39877993 | M46: 110.8102681 | N46: 93.41148822 | O46: =+Krank*COS(B46)+AC*COS(J46+Beta) -> 68.62132883 | P46: =+Krank*SIN(B46)+AC*SIN(J46+Beta) -> 134.280377 | Q46: =Krank/Biyel*SIN(B46-K46)/SIN(K46-J46)*$J$1 -> -0.572500113 | R46: =Krank/Sarkac*SIN(B46-J46)/SIN(K46-J46)*$J$1 -> 6.255608721 | S46: =-Krank*$J$1*SIN(B46)-AC*Q46*SIN(J46+Beta) -> -280.5532508 | T46: =+Krank*$J$1*COS(B46)+AC*Q46*COS(J46+Beta) -> -135.0584719
A47: 110 | B47: 1.919862177 | C47: =-Sabit+Krank*COS(B47) -> -81.97070502 | D47: =+Krank*SIN(B47) -> 32.88924173 | E47: 88.32269642 | F47: 2.760024955 | G47: 158.1377813 | H47: =ACOS((E47^2+Sarkac^2-Biyel^2)/2/E47/Sarkac) -> 0.7712735238 | I47: =+ACOS((Biyel^2+Sarkac^2-E47^2)/(2*Biyel*Sarkac)) -> 1.689290404 | J47: 0.2994610272 | K47: 1.988751431 | L47: 17.15785299 | M47: 113.9470635 | N47: 96.78921052 | O47: =+Krank*COS(B47)+AC*COS(J47+Beta) -> 66.13108807 | P47: =+Krank*SIN(B47)+AC*SIN(J47+Beta) -> 133.0346855 | Q47: =Krank/Biyel*SIN(B47-K47)/SIN(K47-J47)*$J$1 -> -0.3913274998 | R47: =Krank/Sarkac*SIN(B47-J47)/SIN(K47-J47)*$J$1 -> 6.28639361 | S47: =-Krank*$J$1*SIN(B47)-AC*Q47*SIN(J47+Beta) -> -289.7027511 | T47: =+Krank*$J$1*COS(B47)+AC*Q47*COS(J47+Beta) -> -150.2704296
A48: 115 | B48: 2.00712864 | C48: =-Sabit+Krank*COS(B48) -> -84.79163916 | D48: =+Krank*SIN(B48) -> 31.72077255 | E48: 90.53082062 | F48: 2.783608978 | G48: 159.4890463 | H48: =ACOS((E48^2+Sarkac^2-Biyel^2)/2/E48/Sarkac) -> 0.739976152 | I48: =+ACOS((Biyel^2+Sarkac^2-E48^2)/(2*Biyel*Sarkac)) -> 1.746794168 | J48: 0.2968386584 | K48: 2.043632826 | L48: 17.00760232 | M48: 117.0915358 | N48: 100.0839335 | O48: =+Krank*COS(B48)+AC*COS(J48+Beta) -> 63.57250336 | P48: =+Krank*SIN(B48)+AC*SIN(J48+Beta) -> 131.6610606 | Q48: =Krank/Biyel*SIN(B48-K48)/SIN(K48-J48)*$J$1 -> -0.2092588203 | R48: =Krank/Sarkac*SIN(B48-J48)/SIN(K48-J48)*$J$1 -> 6.286401125 | S48: =-Krank*$J$1*SIN(B48)-AC*Q48*SIN(J48+Beta) -> -296.2943387 | T48: =+Krank*$J$1*COS(B48)+AC*Q48*COS(J48+Beta) -> -164.3147796
A49: 120 | B49: 2.094395102 | C49: =-Sabit+Krank*COS(B49) -> -87.5 | D49: =+Krank*SIN(B49) -> 30.31088913 | E49: 92.60129589 | F49: 2.808119481 | G49: 160.8933946 | H49: =ACOS((E49^2+Sarkac^2-Biyel^2)/2/E49/Sarkac) -> 0.7097385489 | I49: =+ACOS((Biyel^2+Sarkac^2-E49^2)/(2*Biyel*Sarkac)) -> 1.802560311 | J49: 0.2958206211 | K49: 2.098380932 | L49: 16.94927308 | M49: 120.2283712 | N49: 103.2790982 | O49: =+Krank*COS(B49)+AC*COS(J49+Beta) -> 60.96584484 | P49: =+Krank*SIN(B49)+AC*SIN(J49+Beta) -> 130.1713477 | Q49: =Krank/Biyel*SIN(B49-K49)/SIN(K49-J49)*$J$1 -> -0.02311872565 | R49: =Krank/Sarkac*SIN(B49-J49)/SIN(K49-J49)*$J$1 -> 6.255829558 | S49: =-Krank*$J$1*SIN(B49)-AC*Q49*SIN(J49+Beta) -> -300.8002448 | T49: =+Krank*$J$1*COS(B49)+AC*Q49*COS(J49+Beta) -> -176.8140303
A50: 125 | B50: 2.181661565 | C50: =-Sabit+Krank*COS(B50) -> -90.07517527 | D50: =+Krank*SIN(B50) -> 28.67032155 | E50: 94.52790349 | F50: 2.833438675 | G50: 162.3440776 | H50: =ACOS((E50^2+Sarkac^2-Biyel^2)/2/E50/Sarkac) -> 0.6807109841 | I50: =+ACOS((Biyel^2+Sarkac^2-E50^2)/(2*Biyel*Sarkac)) -> 1.856271637 | J50: 0.296456054 | K50: 2.152727691 | L50: 16.98568071 | M50: 123.3422112 | N50: 106.3565304 | O50: =+Krank*COS(B50)+AC*COS(J50+Beta) -> 58.32719911 | P50: =+Krank*SIN(B50)+AC*SIN(J50+Beta) -> 128.5806198 | Q50: =Krank/Biyel*SIN(B50-K50)/SIN(K50-J50)*$J$1 -> 0.170202027 | R50: =Krank/Sarkac*SIN(B50-J50)/SIN(K50-J50)*$J$1 -> 6.194317346 | S50: =-Krank*$J$1*SIN(B50)-AC*Q50*SIN(J50+Beta) -> -303.7081508 | T50: =+Krank*$J$1*COS(B50)+AC*Q50*COS(J50+Beta) -> -187.4075097
A51: 130 | B51: 2.268928028 | C51: =-Sabit+Krank*COS(B51) -> -92.49756634 | D51: =+Krank*SIN(B51) -> 26.81155551 | E51: 96.30503251 | F51: 2.859462272 | G51: 163.8351199 | H51: =ACOS((E51^2+Sarkac^2-Biyel^2)/2/E51/Sarkac) -> 0.6530624549 | I51: =+ACOS((Biyel^2+Sarkac^2-E51^2)/(2*Biyel*Sarkac)) -> 1.907578857 | J51: 0.2988209606 | K51: 2.206399817 | L51: 17.12117987 | M51: 126.4173975 | N51: 109.2962176 | O51: =+Krank*COS(B51)+AC*COS(J51+Beta) -> 55.6683105 | P51: =+Krank*SIN(B51)+AC*SIN(J51+Beta) -> 126.9069885 | Q51: =Krank/Biyel*SIN(B51-K51)/SIN(K51-J51)*$J$1 -> 0.3737479911 | R51: =Krank/Sarkac*SIN(B51-J51)/SIN(K51-J51)*$J$1 -> 6.101047359 | S51: =-Krank*$J$1*SIN(B51)-AC*Q51*SIN(J51+Beta) -> -305.5260221 | T51: =+Krank*$J$1*COS(B51)+AC*Q51*COS(J51+Beta) -> -195.7613239
A52: 135 | B52: 2.35619449 | C52: =-Sabit+Krank*COS(B52) -> -94.74873734 | D52: =+Krank*SIN(B52) -> 24.74873734 | E52: 97.92764282 | F52: 2.88609728 | G52: 165.3611934 | H52: =ACOS((E52^2+Sarkac^2-Biyel^2)/2/E52/Sarkac) -> 0.6269819068 | I52: =+ACOS((Biyel^2+Sarkac^2-E52^2)/(2*Biyel*Sarkac)) -> 1.95609788 | J52: 0.3030174934 | K52: 2.259115373 | L52: 17.36162349 | M52: 129.4377763 | N52: 112.0761528 | O52: =+Krank*COS(B52)+AC*COS(J52+Beta) -> 52.99639868 | P52: =+Krank*SIN(B52)+AC*SIN(J52+Beta) -> 125.1713136 | Q52: =Krank/Biyel*SIN(B52-K52)/SIN(K52-J52)*$J$1 -> 0.590456084 | R52: =Krank/Sarkac*SIN(B52-J52)/SIN(K52-J52)*$J$1 -> 5.974879092 | S52: =-Krank*$J$1*SIN(B52)-AC*Q52*SIN(J52+Beta) -> -306.7824945 | T52: =+Krank*$J$1*COS(B52)+AC*Q52*COS(J52+Beta) -> -201.5822849
A53: 140 | B53: 2.443460953 | C53: =-Sabit+Krank*COS(B53) -> -96.81155551 | D53: =+Krank*SIN(B53) -> 22.49756634 | E53: 99.39123589 | F53: 2.913260149 | G53: 166.9175112 | H53: =ACOS((E53^2+Sarkac^2-Biyel^2)/2/E53/Sarkac) -> 0.6026784662 | I53: =+ACOS((Biyel^2+Sarkac^2-E53^2)/(2*Biyel*Sarkac)) -> 2.001409056 | J53: 0.3091726264 | K53: 2.310581683 | L53: 17.71428663 | M53: 132.3865786 | N53: 114.672292 | O53: =+Krank*COS(B53)+AC*COS(J53+Beta) -> 50.31399739 | P53: =+Krank*SIN(B53)+AC*SIN(J53+Beta) -> 123.396769 | Q53: =Krank/Biyel*SIN(B53-K53)/SIN(K53-J53)*$J$1 -> 0.8230560415 | R53: =Krank/Sarkac*SIN(B53-J53)/SIN(K53-J53)*$J$1 -> 5.814526276 | S53: =-Krank*$J$1*SIN(B53)-AC*Q53*SIN(J53+Beta) -> -308.0213617 | T53: =+Krank*$J$1*COS(B53)+AC*Q53*COS(J53+Beta) -> -204.6369028
A54: 145 | B54: 2.530727415 | C54: =-Sabit+Krank*COS(B54) -> -98.67032155 | D54: =+Krank*SIN(B54) -> 20.07517527 | E54: 100.6918319 | F54: 2.940875201 | G54: 168.4997371 | H54: =ACOS((E54^2+Sarkac^2-Biyel^2)/2/E54/Sarkac) -> 0.5803801472 | I54: =+ACOS((Biyel^2+Sarkac^2-E54^2)/(2*Biyel*Sarkac)) -> 2.043059387 | J54: 0.3174356676 | K54: 2.360495054 | L54: 18.18772402 | M54: 135.2464042 | N54: 117.0586801 | O54: =+Krank*COS(B54)+AC*COS(J54+Beta) -> 47.6188736 | P54: =+Krank*SIN(B54)+AC*SIN(J54+Beta) -> 121.6082177 | Q54: =Krank/Biyel*SIN(B54-K54)/SIN(K54-J54)*$J$1 -> 1.073902635 | R54: =Krank/Sarkac*SIN(B54-J54)/SIN(K54-J54)*$J$1 -> 5.61879605 | S54: =-Krank*$J$1*SIN(B54)-AC*Q54*SIN(J54+Beta) -> -309.7883545 | T54: =+Krank*$J$1*COS(B54)+AC*Q54*COS(J54+Beta) -> -204.7760478
A55: 150 | B55: 2.617993878 | C55: =-Sabit+Krank*COS(B55) -> -100.3108891 | D55: =+Krank*SIN(B55) -> 17.5 | E55: 101.8259519 | F55: 2.968873289 | G55: 170.1039094 | H55: =ACOS((E55^2+Sarkac^2-Biyel^2)/2/E55/Sarkac) -> 0.5603303957 | I55: =+ACOS((Biyel^2+Sarkac^2-E55^2)/(2*Biyel*Sarkac)) -> 2.080568908 | J55: 0.3279739854 | K55: 2.408542893 | L55: 18.79152515 | M55: 137.9993426 | N55: 119.2078174 | O55: =+Krank*COS(B55)+AC*COS(J55+Beta) -> 44.9041022 | P55: =+Krank*SIN(B55)+AC*SIN(J55+Beta) -> 119.8313494 | Q55: =Krank/Biyel*SIN(B55-K55)/SIN(K55-J55)*$J$1 -> 1.344733901 | R55: =Krank/Sarkac*SIN(B55-J55)/SIN(K55-J55)*$J$1 -> 5.386898707 | S55: =-Krank*$J$1*SIN(B55)-AC*Q55*SIN(J55+Beta) -> -312.6084347 | T55: =+Krank*$J$1*COS(B55)+AC*Q55*COS(J55+Beta) -> -201.9647426
A56: 155 | B56: 2.705260341 | C56: =-Sabit+Krank*COS(B56) -> -101.7207725 | D56: =+Krank*SIN(B56) -> 14.79163916 | E56: 102.7906034 | F56: 2.997190639 | G56: 171.726374 | H56: =ACOS((E56^2+Sarkac^2-Biyel^2)/2/E56/Sarkac) -> 0.5427818255 | I56: =+ACOS((Biyel^2+Sarkac^2-E56^2)/(2*Biyel*Sarkac)) -> 2.113442488 | J56: 0.3409663255 | K56: 2.454408813 | L56: 19.53593141 | M56: 140.6272662 | N56: 121.0913348 | O56: =+Krank*COS(B56)+AC*COS(J56+Beta) -> 42.15838441 | P56: =+Krank*SIN(B56)+AC*SIN(J56+Beta) -> 118.0915432 | Q56: =Krank/Biyel*SIN(B56-K56)/SIN(K56-J56)*$J$1 -> 1.636363849 | R56: =Krank/Sarkac*SIN(B56-J56)/SIN(K56-J56)*$J$1 -> 5.118820851 | S56: =-Krank*$J$1*SIN(B56)-AC*Q56*SIN(J56+Beta) -> -316.9526201 | T56: =+Krank*$J$1*COS(B56)+AC*Q56*COS(J56+Beta) -> -196.3145438
A57: 160 | B57: 2.792526803 | C57: =-Sabit+Krank*COS(B57) -> -102.8892417 | D57: =+Krank*SIN(B57) -> 11.97070502 | E57: 103.5832701 | F57: 3.025767847 | G57: 173.3637274 | H57: =ACOS((E57^2+Sarkac^2-Biyel^2)/2/E57/Sarkac) -> 0.5279866823 | I57: =+ACOS((Biyel^2+Sarkac^2-E57^2)/(2*Biyel*Sarkac)) -> 2.141187897 | J57: 0.3565932675 | K57: 2.497781165 | L57: 20.43128923 | M57: 143.1123189 | N57: 122.6810296 | O57: =+Krank*COS(B57)+AC*COS(J57+Beta) -> 39.3666988 | P57: =+Krank*SIN(B57)+AC*SIN(J57+Beta) -> 116.4124546 | Q57: =Krank/Biyel*SIN(B57-K57)/SIN(K57-J57)*$J$1 -> 1.948342237 | R57: =Krank/Sarkac*SIN(B57-J57)/SIN(K57-J57)*$J$1 -> 4.815727759 | S57: =-Krank*$J$1*SIN(B57)-AC*Q57*SIN(J57+Beta) -> -323.1953222 | T57: =+Krank*$J$1*COS(B57)+AC*Q57*COS(J57+Beta) -> -188.1131164
A58: 165 | B58: 2.879793266 | C58: =-Sabit+Krank*COS(B58) -> -103.8074039 | D58: =+Krank*SIN(B58) -> 9.058666579 | E58: 104.2019028 | F58: 3.054548987 | G58: 175.0127653 | H58: =ACOS((E58^2+Sarkac^2-Biyel^2)/2/E58/Sarkac) -> 0.5161840247 | I58: =+ACOS((Biyel^2+Sarkac^2-E58^2)/(2*Biyel*Sarkac)) -> 2.163340172 | J58: 0.3750247899 | K58: 2.538364962 | L58: 21.48733767 | M58: 145.4375992 | N58: 123.9502615 | O58: =+Krank*COS(B58)+AC*COS(J58+Beta) -> 36.51135208 | P58: =+Krank*SIN(B58)+AC*SIN(J58+Beta) -> 114.8143877 | Q58: =Krank/Biyel*SIN(B58-K58)/SIN(K58-J58)*$J$1 -> 2.278645232 | R58: =Krank/Sarkac*SIN(B58-J58)/SIN(K58-J58)*$J$1 -> 4.480325883 | S58: =-Krank*$J$1*SIN(B58)-AC*Q58*SIN(J58+Beta) -> -331.5664355 | T58: =+Krank*$J$1*COS(B58)+AC*Q58*COS(J58+Beta) -> -177.8425412
A59: 170 | B59: 2.967059728 | C59: =-Sabit+Krank*COS(B59) -> -104.4682714 | D59: =+Krank*SIN(B59) -> 6.077686218 | E59: 104.6449138 | F59: 3.083480816 | G59: 176.6704369 | H59: =ACOS((E59^2+Sarkac^2-Biyel^2)/2/E59/Sarkac) -> 0.5075843639 | I59: =+ACOS((Biyel^2+Sarkac^2-E59^2)/(2*Biyel*Sarkac)) -> 2.179490856 | J59: 0.3964055959 | K59: 2.575896452 | L59: 22.71236762 | M59: 147.5879951 | N59: 124.8756275 | O59: =+Krank*COS(B59)+AC*COS(J59+Beta) -> 33.57344225 | P59: =+Krank*SIN(B59)+AC*SIN(J59+Beta) -> 113.3125929 | Q59: =Krank/Biyel*SIN(B59-K59)/SIN(K59-J59)*$J$1 -> 2.623488401 | R59: =Krank/Sarkac*SIN(B59-J59)/SIN(K59-J59)*$J$1 -> 4.117085623 | S59: =-Krank*$J$1*SIN(B59)-AC*Q59*SIN(J59+Beta) -> -342.106396 | T59: =+Krank*$J$1*COS(B59)+AC*Q59*COS(J59+Beta) -> -166.1760671
A60: 175 | B60: 3.054326191 | C60: =-Sabit+Krank*COS(B60) -> -104.8668144 | D60: =+Krank*SIN(B60) -> 3.050450996 | E60: 104.911172 | F60: 3.112512043 | G60: 178.3338037 | H60: =ACOS((E60^2+Sarkac^2-Biyel^2)/2/E60/Sarkac) -> 0.5023534323 | I60: =+ACOS((Biyel^2+Sarkac^2-E60^2)/(2*Biyel*Sarkac)) -> 2.189318909 | J60: 0.4208397013 | K60: 2.61015861 | L60: 24.11233874 | M60: 149.5510722 | N60: 125.4387335 | O60: =+Krank*COS(B60)+AC*COS(J60+Beta) -> 30.53466056 | P60: =+Krank*SIN(B60)+AC*SIN(J60+Beta) -> 111.9157213 | Q60: =Krank/Biyel*SIN(B60-K60)/SIN(K60-J60)*$J$1 -> 2.977359326 | R60: =Krank/Sarkac*SIN(B60-J60)/SIN(K60-J60)*$J$1 -> 3.732217687 | S60: =-Krank*$J$1*SIN(B60)-AC*Q60*SIN(J60+Beta) -> -354.6355376 | T60: =+Krank*$J$1*COS(B60)+AC*Q60*COS(J60+Beta) -> -153.9444528
A61: 180 | B61: 3.141592654 | C61: =-Sabit+Krank*COS(B61) -> -105 | D61: =+Krank*SIN(B61) -> 4.288019592e-15 | E61: 105 | F61: 3.141592654 | G61: 180 | H61: =ACOS((E61^2+Sarkac^2-Biyel^2)/2/E61/Sarkac) -> 0.5005975628 | I61: =+ACOS((Biyel^2+Sarkac^2-E61^2)/(2*Biyel*Sarkac)) -> 2.192618572 | J61: 0.4483765189 | K61: 2.640995091 | L61: 25.69008216 | M61: 151.3178724 | N61: 125.6277903 | O61: =+Krank*COS(B61)+AC*COS(J61+Beta) -> 27.37925613 | P61: =+Krank*SIN(B61)+AC*SIN(J61+Beta) -> 110.6247188 | Q61: =Krank/Biyel*SIN(B61-K61)/SIN(K61-J61)*$J$1 -> 3.333333333 | R61: =Krank/Sarkac*SIN(B61-J61)/SIN(K61-J61)*$J$1 -> 3.333333333 | S61: =-Krank*$J$1*SIN(B61)-AC*Q61*SIN(J61+Beta) -> -368.7490626 | T61: =+Krank*$J$1*COS(B61)+AC*Q61*COS(J61+Beta) -> -142.0691462
A62: 185 | B62: 3.228859116 | C62: =-Sabit+Krank*COS(B62) -> -104.8668144 | D62: =+Krank*SIN(B62) -> -3.050450996 | E62: 104.911172 | F62: -3.112512043 | G62: -178.3338037 | H62: =ACOS((E62^2+Sarkac^2-Biyel^2)/2/E62/Sarkac) -> 0.5023534323 | I62: =+ACOS((Biyel^2+Sarkac^2-E62^2)/(2*Biyel*Sarkac)) -> 2.189318909 | J62: -5.804184384 | K62: -3.614865475 | L62: =+J62/D_R+360 -> 27.4447313 | M62: =+K62/D_R+360 -> 152.8834648 | N62: 125.4387335 | O62: =+Krank*COS(B62)+AC*COS(J62+Beta) -> 24.09590604 | P62: =+Krank*SIN(B62)+AC*SIN(J62+Beta) -> 109.4324259 | Q62: =Krank/Biyel*SIN(B62-K62)/SIN(K62-J62)*$J$1 -> 3.683660306 | R62: =Krank/Sarkac*SIN(B62-J62)/SIN(K62-J62)*$J$1 -> 2.928801945 | S62: =-Krank*$J$1*SIN(B62)-AC*Q62*SIN(J62+Beta) -> -383.8441988 | T62: =+Krank*$J$1*COS(B62)+AC*Q62*COS(J62+Beta) -> -131.4695114
A63: 190 | B63: 3.316125579 | C63: =-Sabit+Krank*COS(B63) -> -104.4682714 | D63: =+Krank*SIN(B63) -> -6.077686218 | E63: 104.6449138 | F63: -3.083480816 | G63: -176.6704369 | H63: =ACOS((E63^2+Sarkac^2-Biyel^2)/2/E63/Sarkac) -> 0.5075843639 | I63: =+ACOS((Biyel^2+Sarkac^2-E63^2)/(2*Biyel*Sarkac)) -> 2.179490856 | J63: -5.770556035 | K63: -3.59106518 | L63: =+J63/D_R+360 -> 29.37149373 | M63: =+K63/D_R+360 -> 154.2471213 | N63: 124.8756275 | O63: =+Krank*COS(B63)+AC*COS(J63+Beta) -> 20.67921232 | P63: =+Krank*SIN(B63)+AC*SIN(J63+Beta) -> 108.3240404 | Q63: =Krank/Biyel*SIN(B63-K63)/SIN(K63-J63)*$J$1 -> 4.02051823 | R63: =Krank/Sarkac*SIN(B63-J63)/SIN(K63-J63)*$J$1 -> 2.526921008 | S63: =-Krank*$J$1*SIN(B63)-AC*Q63*SIN(J63+Beta) -> -399.1773651 | T63: =+Krank*$J$1*COS(B63)+AC*Q63*COS(J63+Beta) -> -122.9612501
A64: 195 | B64: 3.403392041 | C64: =-Sabit+Krank*COS(B64) -> -103.8074039 | D64: =+Krank*SIN(B64) -> -9.058666579 | E64: 104.2019028 | F64: -3.054548987 | G64: -175.0127653 | H64: =ACOS((E64^2+Sarkac^2-Biyel^2)/2/E64/Sarkac) -> 0.5161840247 | I64: =+ACOS((Biyel^2+Sarkac^2-E64^2)/(2*Biyel*Sarkac)) -> 2.163340172 | J64: -5.734073184 | K64: -3.570733012 | L64: 31.46180713 | M64: 155.4120687 | N64: 123.9502615 | O64: =+Krank*COS(B64)+AC*COS(J64+Beta) -> 17.13060786 | P64: =+Krank*SIN(B64)+AC*SIN(J64+Beta) -> 107.2784253 | Q64: =Krank/Biyel*SIN(B64-K64)/SIN(K64-J64)*$J$1 -> 4.336764946 | R64: =Krank/Sarkac*SIN(B64-J64)/SIN(K64-J64)*$J$1 -> 2.135084295 | S64: =-Krank*$J$1*SIN(B64)-AC*Q64*SIN(J64+Beta) -> -413.9399563 | T64: =+Krank*$J$1*COS(B64)+AC*Q64*COS(J64+Beta) -> -117.1678553
A65: 200 | B65: 3.490658504 | C65: =-Sabit+Krank*COS(B65) -> -102.8892417 | D65: =+Krank*SIN(B65) -> -11.97070502 | E65: 103.5832701 | F65: -3.025767847 | G65: -173.3637274 | H65: =ACOS((E65^2+Sarkac^2-Biyel^2)/2/E65/Sarkac) -> 0.5279866823 | I65: =+ACOS((Biyel^2+Sarkac^2-E65^2)/(2*Biyel*Sarkac)) -> 2.141187897 | J65: -5.694942426 | K65: -3.553754529 | L65: 33.70383441 | M65: 156.3848641 | N65: 122.6810296 | O65: =+Krank*COS(B65)+AC*COS(J65+Beta) -> 13.45857957 | P65: =+Krank*SIN(B65)+AC*SIN(J65+Beta) -> 106.270064 | Q65: =Krank/Biyel*SIN(B65-K65)/SIN(K65-J65)*$J$1 -> 4.62651949 | R65: =Krank/Sarkac*SIN(B65-J65)/SIN(K65-J65)*$J$1 -> 1.759133969 | S65: =-Krank*$J$1*SIN(B65)-AC*Q65*SIN(J65+Beta) -> -427.3361723 | T65: =+Krank*$J$1*COS(B65)+AC*Q65*COS(J65+Beta) -> -114.4633187
A66: 205 | B66: 3.577924967 | C66: =-Sabit+Krank*COS(B66) -> -101.7207725 | D66: =+Krank*SIN(B66) -> -14.79163916 | E66: 102.7906034 | F66: -2.997190639 | G66: -171.726374 | H66: =ACOS((E66^2+Sarkac^2-Biyel^2)/2/E66/Sarkac) -> 0.5427818255 | I66: =+ACOS((Biyel^2+Sarkac^2-E66^2)/(2*Biyel*Sarkac)) -> 2.113442488 | J66: -5.653414952 | K66: -3.539972464 | L66: 36.08318339 | M66: 157.1745182 | N66: 121.0913348 | O66: =+Krank*COS(B66)+AC*COS(J66+Beta) -> 9.678261109 | P66: =+Krank*SIN(B66)+AC*SIN(J66+Beta) -> 105.2713444 | Q66: =Krank/Biyel*SIN(B66-K66)/SIN(K66-J66)*$J$1 -> 4.885468495 | R66: =Krank/Sarkac*SIN(B66-J66)/SIN(K66-J66)*$J$1 -> 1.403011493 | S66: =-Krank*$J$1*SIN(B66)-AC*Q66*SIN(J66+Beta) -> -438.6475319 | T66: =+Krank*$J$1*COS(B66)+AC*Q66*COS(J66+Beta) -> -114.9540508
A67: 210 | B67: 3.665191429 | C67: =-Sabit+Krank*COS(B67) -> -100.3108891 | D67: =+Krank*SIN(B67) -> -17.5 | E67: 101.8259519 | F67: -2.968873289 | G67: -170.1039094 | H67: =ACOS((E67^2+Sarkac^2-Biyel^2)/2/E67/Sarkac) -> 0.5603303957 | I67: =+ACOS((Biyel^2+Sarkac^2-E67^2)/(2*Biyel*Sarkac)) -> 2.080568908 | J67: -5.609772592 | K67: -3.529203685 | L67: 38.58370643 | M67: 157.7915238 | N67: 119.2078174 | O67: =+Krank*COS(B67)+AC*COS(J67+Beta) -> 5.810556563 | P67: =+Krank*SIN(B67)+AC*SIN(J67+Beta) -> 104.2548404 | Q67: =Krank/Biyel*SIN(B67-K67)/SIN(K67-J67)*$J$1 -> 5.110885211 | R67: =Krank/Sarkac*SIN(B67-J67)/SIN(K67-J67)*$J$1 -> 1.068720405 | S67: =-Krank*$J$1*SIN(B67)-AC*Q67*SIN(J67+Beta) -> -447.2750132 | T67: =+Krank*$J$1*COS(B67)+AC*Q67*COS(J67+Beta) -> -118.4963287
A68: 215 | B68: 3.752457892 | C68: =-Sabit+Krank*COS(B68) -> -98.67032155 | D68: =+Krank*SIN(B68) -> -20.07517527 | E68: 100.6918319 | F68: -2.940875201 | G68: -168.4997371 | H68: =ACOS((E68^2+Sarkac^2-Biyel^2)/2/E68/Sarkac) -> 0.5803801472 | I68: =+ACOS((Biyel^2+Sarkac^2-E68^2)/(2*Biyel*Sarkac)) -> 2.043059387 | J68: -5.564314735 | K68: -3.521255349 | L68: 41.1882498 | M68: 158.2469299 | N68: 117.0586801 | O68: =+Krank*COS(B68)+AC*COS(J68+Beta) -> 1.881001412 | P68: =+Krank*SIN(B68)+AC*SIN(J68+Beta) -> 103.1953267 | Q68: =Krank/Biyel*SIN(B68-K68)/SIN(K68-J68)*$J$1 -> 5.301424147 | R68: =Krank/Sarkac*SIN(B68-J68)/SIN(K68-J68)*$J$1 -> 0.7565307314 | S68: =-Krank*$J$1*SIN(B68)-AC*Q68*SIN(J68+Beta) -> -452.7574632 | T68: =+Krank*$J$1*COS(B68)+AC*Q68*COS(J68+Beta) -> -124.7376942
A69: 220 | B69: 3.839724354 | C69: =-Sabit+Krank*COS(B69) -> -96.81155551 | D69: =+Krank*SIN(B69) -> -22.49756634 | E69: 99.39123589 | F69: -2.913260149 | G69: -166.9175112 | H69: =ACOS((E69^2+Sarkac^2-Biyel^2)/2/E69/Sarkac) -> 0.6026784662 | I69: =+ACOS((Biyel^2+Sarkac^2-E69^2)/(2*Biyel*Sarkac)) -> 2.001409056 | J69: -5.517347672 | K69: -3.515938615 | L69: 43.8792643 | M69: 158.5515563 | N69: 114.672292 | O69: =+Krank*COS(B69)+AC*COS(J69+Beta) -> -2.081448146 | P69: =+Krank*SIN(B69)+AC*SIN(J69+Beta) -> 102.0713776 | Q69: =Krank/Biyel*SIN(B69-K69)/SIN(K69-J69)*$J$1 -> 5.456787875 | R69: =Krank/Sarkac*SIN(B69-J69)/SIN(K69-J69)*$J$1 -> 0.4653176405 | S69: =-Krank*$J$1*SIN(B69)-AC*Q69*SIN(J69+Beta) -> -454.7706394 | T69: =+Krank*$J$1*COS(B69)+AC*Q69*COS(J69+Beta) -> -133.1686051
A70: 225 | B70: 3.926990817 | C70: =-Sabit+Krank*COS(B70) -> -94.74873734 | D70: =+Krank*SIN(B70) -> -24.74873734 | E70: 97.92764282 | F70: -2.88609728 | G70: -165.3611934 | H70: =ACOS((E70^2+Sarkac^2-Biyel^2)/2/E70/Sarkac) -> 0.6269819068 | I70: =+ACOS((Biyel^2+Sarkac^2-E70^2)/(2*Biyel*Sarkac)) -> 1.95609788 | J70: -5.469177066 | K70: -3.513079187 | L70: 46.63923668 | M70: 158.7153895 | N70: 112.0761528 | O70: =+Krank*COS(B70)+AC*COS(J70+Beta) -> -6.045557466 | P70: =+Krank*SIN(B70)+AC*SIN(J70+Beta) -> 100.8665128 | Q70: =Krank/Biyel*SIN(B70-K70)/SIN(K70-J70)*$J$1 -> 5.577356489 | R70: =Krank/Sarkac*SIN(B70-J70)/SIN(K70-J70)*$J$1 -> 0.1929334812 | S70: =-Krank*$J$1*SIN(B70)-AC*Q70*SIN(J70+Beta) -> -453.113657 | T70: =+Krank*$J$1*COS(B70)+AC*Q70*COS(J70+Beta) -> -143.1730718
A71: 230 | B71: 4.01425728 | C71: =-Sabit+Krank*COS(B71) -> -92.49756634 | D71: =+Krank*SIN(B71) -> -26.81155551 | E71: 96.30503251 | F71: -2.859462272 | G71: -163.8351199 | H71: =ACOS((E71^2+Sarkac^2-Biyel^2)/2/E71/Sarkac) -> 0.6530624549 | I71: =+ACOS((Biyel^2+Sarkac^2-E71^2)/(2*Biyel*Sarkac)) -> 1.907578857 | J71: -5.420103584 | K71: -3.512524727 | L71: 49.45094013 | M71: 158.7471577 | N71: 109.2962176 | O71: =+Krank*COS(B71)+AC*COS(J71+Beta) -> -9.978806424 | P71: =+Krank*SIN(B71)+AC*SIN(J71+Beta) -> 99.56993305 | Q71: =Krank/Biyel*SIN(B71-K71)/SIN(K71-J71)*$J$1 -> 5.663842301 | R71: =Krank/Sarkac*SIN(B71-J71)/SIN(K71-J71)*$J$1 -> -0.06345706696 | S71: =-Krank*$J$1*SIN(B71)-AC*Q71*SIN(J71+Beta) -> -447.6892658 | T71: =+Krank*$J$1*COS(B71)+AC*Q71*COS(J71+Beta) -> -154.0713814
A72: 235 | B72: 4.101523742 | C72: =-Sabit+Krank*COS(B72) -> -90.07517527 | D72: =+Krank*SIN(B72) -> -28.67032155 | E72: 94.52790349 | F72: -2.833438675 | G72: -162.3440776 | H72: =ACOS((E72^2+Sarkac^2-Biyel^2)/2/E72/Sarkac) -> 0.6807109841 | I72: =+ACOS((Biyel^2+Sarkac^2-E72^2)/(2*Biyel*Sarkac)) -> 1.856271637 | J72: -5.370421297 | K72: -3.51414966 | L72: 52.29752548 | M72: 158.6540559 | N72: 106.3565304 | O72: =+Krank*COS(B72)+AC*COS(J72+Beta) -> -13.84820102 | P72: =+Krank*SIN(B72)+AC*SIN(J72+Beta) -> 98.17692829 | Q72: =Krank/Biyel*SIN(B72-K72)/SIN(K72-J72)*$J$1 -> 5.717000807 | R72: =Krank/Sarkac*SIN(B72-J72)/SIN(K72-J72)*$J$1 -> -0.3071145118 | S72: =-Krank*$J$1*SIN(B72)-AC*Q72*SIN(J72+Beta) -> -438.4826141 | T72: =+Krank*$J$1*COS(B72)+AC*Q72*COS(J72+Beta) -> -165.1521359
A73: 240 | B73: 4.188790205 | C73: =-Sabit+Krank*COS(B73) -> -87.5 | D73: =+Krank*SIN(B73) -> -30.31088913 | E73: 92.60129589 | F73: -2.808119481 | G73: -160.8933946 | H73: =ACOS((E73^2+Sarkac^2-Biyel^2)/2/E73/Sarkac) -> 0.7097385489 | I73: =+ACOS((Biyel^2+Sarkac^2-E73^2)/(2*Biyel*Sarkac)) -> 1.802560311 | J73: -5.320418342 | K73: -3.51785803 | L73: 55.16248378 | M73: 158.4415819 | N73: 103.2790982 | O73: =+Krank*COS(B73)+AC*COS(J73+Beta) -> -17.62090333 | P73: =+Krank*SIN(B73)+AC*SIN(J73+Beta) -> 96.68905332 | Q73: =Krank/Biyel*SIN(B73-K73)/SIN(K73-J73)*$J$1 -> 5.73740444 | R73: =Krank/Sarkac*SIN(B73-J73)/SIN(K73-J73)*$J$1 -> -0.5415438434 | S73: =-Krank*$J$1*SIN(B73)-AC*Q73*SIN(J73+Beta) -> -425.5411424 | T73: =+Krank*$J$1*COS(B73)+AC*Q73*COS(J73+Beta) -> -175.6936713
A74: 245 | B74: 4.276056667 | C74: =-Sabit+Krank*COS(B74) -> -84.79163916 | D74: =+Krank*SIN(B74) -> -31.72077255 | E74: 90.53082062 | F74: -2.783608978 | G74: -159.4890463 | H74: =ACOS((E74^2+Sarkac^2-Biyel^2)/2/E74/Sarkac) -> 0.739976152 | I74: =+ACOS((Biyel^2+Sarkac^2-E74^2)/(2*Biyel*Sarkac)) -> 1.746794168 | J74: -5.270379298 | K74: -3.52358513 | L74: 58.02950979 | M74: 158.1134433 | N74: 100.0839335 | O74: =+Krank*COS(B74)+AC*COS(J74+Beta) -> -21.2646951 | P74: =+Krank*SIN(B74)+AC*SIN(J74+Beta) -> 95.11415776 | Q74: =Krank/Biyel*SIN(B74-K74)/SIN(K74-J74)*$J$1 -> 5.725270948 | R74: =Krank/Sarkac*SIN(B74-J74)/SIN(K74-J74)*$J$1 -> -0.7703889965 | S74: =-Krank*$J$1*SIN(B74)-AC*Q74*SIN(J74+Beta) -> -408.9566163 | T74: =+Krank*$J$1*COS(B74)+AC*Q74*COS(J74+Beta) -> -184.9763907
A75: 250 | B75: 4.36332313 | C75: =-Sabit+Krank*COS(B75) -> -81.97070502 | D75: =+Krank*SIN(B75) -> -32.88924173 | E75: 88.32269642 | F75: -2.760024955 | G75: -158.1377813 | H75: =ACOS((E75^2+Sarkac^2-Biyel^2)/2/E75/Sarkac) -> 0.7712735238 | I75: =+ACOS((Biyel^2+Sarkac^2-E75^2)/(2*Biyel*Sarkac)) -> 1.689290404 | J75: -5.220588883 | K75: -3.531298479 | L75: 60.88229043 | M75: 157.671501 | N75: 96.78921052 | O75: =+Krank*COS(B75)+AC*COS(J75+Beta) -> -24.74829383 | P75: =+Krank*SIN(B75)+AC*SIN(J75+Beta) -> 93.46634075 | Q75: =Krank/Biyel*SIN(B75-K75)/SIN(K75-J75)*$J$1 -> 5.680331831 | R75: =Krank/Sarkac*SIN(B75-J75)/SIN(K75-J75)*$J$1 -> -0.9973892789 | S75: =-Krank*$J$1*SIN(B75)-AC*Q75*SIN(J75+Beta) -> -388.8492199 | T75: =+Krank*$J$1*COS(B75)+AC*Q75*COS(J75+Beta) -> -192.2879946
A76: 255 | B76: 4.450589593 | C76: =-Sabit+Krank*COS(B76) -> -79.05866658 | D76: =+Krank*SIN(B76) -> -33.80740392 | E76: 85.98379685 | F76: -2.737501334 | G76: -156.8472729 | H76: =ACOS((E76^2+Sarkac^2-Biyel^2)/2/E76/Sarkac) -> 0.8034973102 | I76: =+ACOS((Biyel^2+Sarkac^2-E76^2)/(2*Biyel*Sarkac)) -> 1.630338029 | J76: -5.171336673 | K76: -3.540998645 | L76: 63.70423419 | M76: 157.1157224 | N76: 93.41148822 | O76: =+Krank*COS(B76)+AC*COS(J76+Beta) -> -28.04153662 | P76: =+Krank*SIN(B76)+AC*SIN(J76+Beta) -> 91.76588402 | Q76: =Krank/Biyel*SIN(B76-K76)/SIN(K76-J76)*$J$1 -> 5.601725106 | R76: =Krank/Sarkac*SIN(B76-J76)/SIN(K76-J76)*$J$1 -> -1.226383728 | S76: =-Krank*$J$1*SIN(B76)-AC*Q76*SIN(J76+Beta) -> -365.3530005 | T76: =+Krank*$J$1*COS(B76)+AC*Q76*COS(J76+Beta) -> -196.9234855
A77: 260 | B77: 4.537856055 | C77: =-Sabit+Krank*COS(B77) -> -76.07768622 | D77: =+Krank*SIN(B77) -> -34.46827136 | E77: 83.52171018 | F77: -2.71619133 | G77: -155.6262996 | H77: =ACOS((E77^2+Sarkac^2-Biyel^2)/2/E77/Sarkac) -> 0.8365289379 | I77: =+ACOS((Biyel^2+Sarkac^2-E77^2)/(2*Biyel*Sarkac)) -> 1.570202443 | J77: -5.122922711 | K77: -3.552720268 | L77: 66.47814988 | M77: 156.4441228 | N77: 89.96597296 | O77: =+Krank*COS(B77)+AC*COS(J77+Beta) -> -31.11543923 | P77: =+Krank*SIN(B77)+AC*SIN(J77+Beta) -> 90.03920201 | Q77: =Krank/Biyel*SIN(B77-K77)/SIN(K77-J77)*$J$1 -> 5.487898185 | R77: =Krank/Sarkac*SIN(B77-J77)/SIN(K77-J77)*$J$1 -> -1.461351298 | S77: =-Krank*$J$1*SIN(B77)-AC*Q77*SIN(J77+Beta) -> -338.6016235 | T77: =+Krank*$J$1*COS(B77)+AC*Q77*COS(J77+Beta) -> -198.1815015
A78: 265 | B78: 4.625122518 | C78: =-Sabit+Krank*COS(B78) -> -73.050451 | D78: =+Krank*SIN(B78) -> -34.86681443 | E78: 80.9448154 | F78: -2.696271246 | G78: -154.4849628 | H78: =ACOS((E78^2+Sarkac^2-Biyel^2)/2/E78/Sarkac) -> 0.8702623123 | I78: =+ACOS((Biyel^2+Sarkac^2-E78^2)/(2*Biyel*Sarkac)) -> 1.509130399 | J78: -5.075663958 | K78: -3.566533558 | L78: 69.185877 | M78: 155.6526796 | N78: 86.46680263 | O78: =+Krank*COS(B78)+AC*COS(J78+Beta) -> -33.94212767 | P78: =+Krank*SIN(B78)+AC*SIN(J78+Beta) -> 88.31883535 | Q78: =Krank/Biyel*SIN(B78-K78)/SIN(K78-J78)*$J$1 -> 5.336509138 | R78: =Krank/Sarkac*SIN(B78-J78)/SIN(K78-J78)*$J$1 -> -1.706477438 | S78: =-Krank*$J$1*SIN(B78)-AC*Q78*SIN(J78+Beta) -> -308.7132014 | T78: =+Krank*$J$1*COS(B78)+AC*Q78*COS(J78+Beta) -> -195.3582248
A79: 270 | B79: 4.71238898 | C79: =-Sabit+Krank*COS(B79) -> -70 | D79: =+Krank*SIN(B79) -> -35 | E79: 78.26237921 | F79: -2.677945045 | G79: -153.4349488 | H79: =ACOS((E79^2+Sarkac^2-Biyel^2)/2/E79/Sarkac) -> 0.9046014107 | I79: =+ACOS((Biyel^2+Sarkac^2-E79^2)/(2*Biyel*Sarkac)) -> 1.447355192 | J79: -5.029901647 | K79: -3.582546455 | L79: 71.80786425 | M79: 154.7352082 | N79: 82.92734395 | O79: =+Krank*COS(B79)+AC*COS(J79+Beta) -> -36.49462839 | P79: =+Krank*SIN(B79)+AC*SIN(J79+Beta) -> 86.64350414 | Q79: =Krank/Biyel*SIN(B79-K79)/SIN(K79-J79)*$J$1 -> 5.144317405 | R79: =Krank/Sarkac*SIN(B79-J79)/SIN(K79-J79)*$J$1 -> -1.966239769 | S79: =-Krank*$J$1*SIN(B79)-AC*Q79*SIN(J79+Beta) -> -275.7727955 | T79: =+Krank*$J$1*COS(B79)+AC*Q79*COS(J79+Beta) -> -187.739952
A80: 275 | B80: 4.799655443 | C80: =-Sabit+Krank*COS(B80) -> -66.949549 | D80: =+Krank*SIN(B80) -> -34.86681443 | E80: 75.48467964 | F80: -2.661449845 | G80: -152.4898435 | H80: =ACOS((E80^2+Sarkac^2-Biyel^2)/2/E80/Sarkac) -> 0.9394577584 | I80: =+ACOS((Biyel^2+Sarkac^2-E80^2)/(2*Biyel*Sarkac)) -> 1.385102061 | J80: -4.986009665 | K80: -3.600907604 | L80: 74.32268961 | M80: 153.6831919 | N80: 79.36050228 | O80: =+Krank*COS(B80)+AC*COS(J80+Beta) -> -38.74648988 | P80: =+Krank*SIN(B80)+AC*SIN(J80+Beta) -> 85.05822771 | Q80: =Krank/Biyel*SIN(B80-K80)/SIN(K80-J80)*$J$1 -> 4.907057996 | R80: =Krank/Sarkac*SIN(B80-J80)/SIN(K80-J80)*$J$1 -> -2.245506387 | S80: =-Krank*$J$1*SIN(B80)-AC*Q80*SIN(J80+Beta) -> -239.8109927 | T80: =+Krank*$J$1*COS(B80)+AC*Q80*COS(J80+Beta) -> -174.595503
A81: 280 | B81: 4.886921906 | C81: =-Sabit+Krank*COS(B81) -> -63.92231378 | D81: =+Krank*SIN(B81) -> -34.46827136 | E81: 72.62316386 | F81: -2.647062504 | G81: -151.6655096 | H81: =ACOS((E81^2+Sarkac^2-Biyel^2)/2/E81/Sarkac) -> 0.9747477065 | I81: =+ACOS((Biyel^2+Sarkac^2-E81^2)/(2*Biyel*Sarkac)) -> 1.322593893 | J81: -4.944404103 | K81: -3.62181021 | L81: 76.7065127 | M81: 152.4855608 | N81: 75.77904806 | O81: =+Krank*COS(B81)+AC*COS(J81+Beta) -> -40.67119352 | P81: =+Krank*SIN(B81)+AC*SIN(J81+Beta) -> 83.61450573 | Q81: =Krank/Biyel*SIN(B81-K81)/SIN(K81-J81)*$J$1 -> 4.619297044 | R81: =Krank/Sarkac*SIN(B81-J81)/SIN(K81-J81)*$J$1 -> -2.549639096 | S81: =-Krank*$J$1*SIN(B81)-AC*Q81*SIN(J81+Beta) -> -200.7767095 | T81: =+Krank*$J$1*COS(B81)+AC*Q81*COS(J81+Beta) -> -155.1700998
A82: 285 | B82: 4.974188368 | C82: =-Sabit+Krank*COS(B82) -> -60.94133342 | D82: =+Krank*SIN(B82) -> -33.80740392 | E82: 69.69064987 | F82: -2.635107426 | G82: -150.9805341 | H82: =ACOS((E82^2+Sarkac^2-Biyel^2)/2/E82/Sarkac) -> 1.010389355 | I82: =+ACOS((Biyel^2+Sarkac^2-E82^2)/(2*Biyel*Sarkac)) -> 1.260057369 | J82: -4.905554151 | K82: -3.645496782 | L82: 78.93245098 | M82: 151.1284202 | N82: 72.19596921 | O82: =+Krank*COS(B82)+AC*COS(J82+Beta) -> -42.24129441 | P82: =+Krank*SIN(B82)+AC*SIN(J82+Beta) -> 82.3705372 | Q82: =Krank/Biyel*SIN(B82-K82)/SIN(K82-J82)*$J$1 -> 4.274272312 | R82: =Krank/Sarkac*SIN(B82-J82)/SIN(K82-J82)*$J$1 -> -2.884589583 | S82: =-Krank*$J$1*SIN(B82)-AC*Q82*SIN(J82+Beta) -> -158.5021178 | T82: =+Krank*$J$1*COS(B82)+AC*Q82*COS(J82+Beta) -> -128.6833371
A83: 290 | B83: 5.061454831 | C83: =-Sabit+Krank*COS(B83) -> -58.02929498 | D83: =+Krank*SIN(B83) -> -32.88924173 | E83: 66.70158392 | F83: -2.625965717 | G83: -150.4567527 | H83: =ACOS((E83^2+Sarkac^2-Biyel^2)/2/E83/Sarkac) -> 1.046298885 | I83: =+ACOS((Biyel^2+Sarkac^2-E83^2)/(2*Biyel*Sarkac)) -> 1.197729794 | J83: -4.869994396 | K83: -3.672264602 | L83: 80.96987483 | M83: 149.594737 | N83: 68.62486221 | O83: =+Krank*COS(B83)+AC*COS(J83+Beta) -> -43.42721355 | P83: =+Krank*SIN(B83)+AC*SIN(J83+Beta) -> 81.39142426 | Q83: =Krank/Biyel*SIN(B83-K83)/SIN(K83-J83)*$J$1 -> 3.863732127 | R83: =Krank/Sarkac*SIN(B83-J83)/SIN(K83-J83)*$J$1 -> -3.256967406 | S83: =-Krank*$J$1*SIN(B83)-AC*Q83*SIN(J83+Beta) -> -112.6574634 | T83: =+Krank*$J$1*COS(B83)+AC*Q83*COS(J83+Beta) -> -94.33566756
A84: 295 | B84: 5.148721293 | C84: =-Sabit+Krank*COS(B84) -> -55.20836084 | D84: =+Krank*SIN(B84) -> -31.72077255 | E84: 63.67236856 | F84: -2.620085612 | G84: -150.1198475 | H84: =ACOS((E84^2+Sarkac^2-Biyel^2)/2/E84/Sarkac) -> 1.082385938 | I84: =+ACOS((Biyel^2+Sarkac^2-E84^2)/(2*Biyel*Sarkac)) -> 1.135866887 | J84: -4.838338437 | K84: -3.70247155 | L84: 82.78362772 | M84: 147.8640064 | N84: 65.0803787 | O84: =+Krank*COS(B84)+AC*COS(J84+Beta) -> -44.19558459 | P84: =+Krank*SIN(B84)+AC*SIN(J84+Beta) -> 80.7492565 | Q84: =Krank/Biyel*SIN(B84-K84)/SIN(K84-J84)*$J$1 -> 3.377803472 | R84: =Krank/Sarkac*SIN(B84-J84)/SIN(K84-J84)*$J$1 -> -3.674041974 | S84: =-Krank*$J$1*SIN(B84)-AC*Q84*SIN(J84+Beta) -> -62.69392912 | T84: =+Krank*$J$1*COS(B84)+AC*Q84*COS(J84+Beta) -> -51.33085755
A85: 300 | B85: 5.235987756 | C85: =-Sabit+Krank*COS(B85) -> -52.5 | D85: =+Krank*SIN(B85) -> -30.31088913 | E85: 60.62177826 | F85: -2.617993878 | G85: -150 | H85: =ACOS((E85^2+Sarkac^2-Biyel^2)/2/E85/Sarkac) -> 1.118547537 | I85: =+ACOS((Biyel^2+Sarkac^2-E85^2)/(2*Biyel*Sarkac)) -> 1.074751893 | J85: -4.811293308 | K85: -3.736541415 | L85: 84.33319946 | M85: 145.911947 | N85: 61.57874751 | O85: =+Krank*COS(B85)+AC*COS(J85+Beta) -> -44.5070479 | P85: =+Krank*SIN(B85)+AC*SIN(J85+Beta) -> 80.52288736 | Q85: =Krank/Biyel*SIN(B85-K85)/SIN(K85-J85)*$J$1 -> 2.804950132 | R85: =Krank/Sarkac*SIN(B85-J85)/SIN(K85-J85)*$J$1 -> -4.143611874 | S85: =-Krank*$J$1*SIN(B85)-AC*Q85*SIN(J85+Beta) -> -7.774324717 | T85: =+Krank*$J$1*COS(B85)+AC*Q85*COS(J85+Beta) -> 1.073322775
A86: 305 | B86: 5.323254219 | C86: =-Sabit+Krank*COS(B86) -> -49.92482473 | D86: =+Krank*SIN(B86) -> -28.67032155 | E86: 57.57148132 | F86: -2.620307275 | G86: -150.1325479 | H86: =ACOS((E86^2+Sarkac^2-Biyel^2)/2/E86/Sarkac) -> 1.154659832 | I86: =+ACOS((Biyel^2+Sarkac^2-E86^2)/(2*Biyel*Sarkac)) -> 1.014706399 | J86: -4.789673506 | K86: -3.774967107 | L86: 85.57192289 | M86: 143.710317 | N86: 58.13839411 | O86: =+Krank*COS(B86)+AC*COS(J86+Beta) -> -44.31339933 | P86: =+Krank*SIN(B86)+AC*SIN(J86+Beta) -> 80.79707753 | Q86: =Krank/Biyel*SIN(B86-K86)/SIN(K86-J86)*$J$1 -> 2.132132649 | R86: =Krank/Sarkac*SIN(B86-J86)/SIN(K86-J86)*$J$1 -> -4.673627978 | S86: =-Krank*$J$1*SIN(B86)-AC*Q86*SIN(J86+Beta) -> 53.30419998 | T86: =+Krank*$J$1*COS(B86)+AC*Q86*COS(J86+Beta) -> 63.46677062
A87: 310 | B87: 5.410520681 | C87: =-Sabit+Krank*COS(B87) -> -47.50243366 | D87: =+Krank*SIN(B87) -> -26.81155551 | E87: 54.54668379 | F87: -2.627742171 | G87: -150.5585361 | H87: =ACOS((E87^2+Sarkac^2-Biyel^2)/2/E87/Sarkac) -> 1.190566688 | I87: =+ACOS((Biyel^2+Sarkac^2-E87^2)/(2*Biyel*Sarkac)) -> 0.9561032031 | J87: -4.774412062 | K87: -3.818308859 | L87: 86.44633917 | M87: 141.2270175 | N87: 54.78067832 | O87: =+Krank*COS(B87)+AC*COS(J87+Beta) -> -43.55407563 | P87: =+Krank*SIN(B87)+AC*SIN(J87+Beta) -> 81.66047127 | Q87: =Krank/Biyel*SIN(B87-K87)/SIN(K87-J87)*$J$1 -> 1.345363537 | R87: =Krank/Sarkac*SIN(B87-J87)/SIN(K87-J87)*$J$1 -> -5.27138471 | S87: =-Krank*$J$1*SIN(B87)-AC*Q87*SIN(J87+Beta) -> 122.1812455 | T87: =+Krank*$J$1*COS(B87)+AC*Q87*COS(J87+Beta) -> 136.1121927
A88: 315 | B88: 5.497787144 | C88: =-Sabit+Krank*COS(B88) -> -45.25126266 | D88: =+Krank*SIN(B88) -> -24.74873734 | E88: 51.57690154 | F88: -2.641118617 | G88: -151.3249499 | H88: =ACOS((E88^2+Sarkac^2-Biyel^2)/2/E88/Sarkac) -> 1.226063878 | I88: =+ACOS((Biyel^2+Sarkac^2-E88^2)/(2*Biyel*Sarkac)) -> 0.8993814721 | J88: -4.766563967 | K88: -3.867182495 | L88: 86.8960019 | M88: 138.4267644 | N88: 51.53076253 | O88: =+Krank*COS(B88)+AC*COS(J88+Beta) -> -42.15216054 | P88: =+Krank*SIN(B88)+AC*SIN(J88+Beta) -> 83.20157467 | Q88: =Krank/Biyel*SIN(B88-K88)/SIN(K88-J88)*$J$1 -> 0.4309722255 | R88: =Krank/Sarkac*SIN(B88-J88)/SIN(K88-J88)*$J$1 -> -5.941994128 | S88: =-Krank*$J$1*SIN(B88)-AC*Q88*SIN(J88+Beta) -> 200.9637872 | T88: =+Krank*$J$1*COS(B88)+AC*Q88*COS(J88+Beta) -> 218.6549446
A89: 320 | B89: 5.585053606 | C89: =-Sabit+Krank*COS(B89) -> -43.18844449 | D89: =+Krank*SIN(B89) -> -22.49756634 | E89: 48.69684003 | F89: -2.661352334 | G89: -152.4842565 | H89: =ACOS((E89^2+Sarkac^2-Biyel^2)/2/E89/Sarkac) -> 1.260877501 | I89: =+ACOS((Biyel^2+Sarkac^2-E89^2)/(2*Biyel*Sarkac)) -> 0.8450639681 | J89: -4.767293803 | K89: -3.922229835 | L89: 86.85418538 | M89: 135.2727842 | N89: 48.41859879 | O89: =+Krank*COS(B89)+AC*COS(J89+Beta) -> -40.01053854 | P89: =+Krank*SIN(B89)+AC*SIN(J89+Beta) -> 85.50154359 | Q89: =Krank/Biyel*SIN(B89-K89)/SIN(K89-J89)*$J$1 -> -0.6219519697 | R89: =Krank/Sarkac*SIN(B89-J89)/SIN(K89-J89)*$J$1 -> -6.685745271 | S89: =-Krank*$J$1*SIN(B89)-AC*Q89*SIN(J89+Beta) -> 292.1459225 | T89: =+Krank*$J$1*COS(B89)+AC*Q89*COS(J89+Beta) -> 309.6756881
A90: 325 | B90: =+A90*D_R -> 5.672320069 | C90: =-Sabit+Krank*COS(B90) -> -41.32967845 | D90: =+Krank*SIN(B90) -> -20.07517527 | E90: =+SQRT(C90^2+D90^2) -> 45.94730659 | F90: =+ATAN2(C90,D90) -> -2.689423912 | G90: =+F90/D_R -> -154.0926395 | H90: =ACOS((E90^2+Sarkac^2-Biyel^2)/2/E90/Sarkac) -> 1.294635618 | I90: =+ACOS((Biyel^2+Sarkac^2-E90^2)/(2*Biyel*Sarkac)) -> 0.7937752338 | J90: =+K90-I90 -> -4.777834764 | K90: =+F90-H90 -> -3.98405953 | L90: 86.25023283 | M90: 131.7302036 | N90: =+I90/D_R -> 45.47997078 | O90: =+Krank*COS(B90)+AC*COS(J90+Beta) -> -37.00966689 | P90: =+Krank*SIN(B90)+AC*SIN(J90+Beta) -> 88.62229075 | Q90: =Krank/Biyel*SIN(B90-K90)/SIN(K90-J90)*$J$1 -> -1.817337814 | R90: =Krank/Sarkac*SIN(B90-J90)/SIN(K90-J90)*$J$1 -> -7.493892937 | S90: =-Krank*$J$1*SIN(B90)-AC*Q90*SIN(J90+Beta) -> 398.291768 | T90: =+Krank*$J$1*COS(B90)+AC*Q90*COS(J90+Beta) -> 406.0659421
A91: 330 | B91: 5.759586532 | C91: =-Sabit+Krank*COS(B91) -> -39.68911087 | D91: =+Krank*SIN(B91) -> -17.5 | E91: 43.37597862 | F91: -2.726309415 | G91: -156.2060231 | H91: =ACOS((E91^2+Sarkac^2-Biyel^2)/2/E91/Sarkac) -> 1.326833675 | I91: =+ACOS((Biyel^2+Sarkac^2-E91^2)/(2*Biyel*Sarkac)) -> 0.746257877 | J91: -4.799400967 | K91: -4.05314309 | L91: 85.01458041 | M91: 127.7720072 | N91: 42.75742678 | O91: =+Krank*COS(B91)+AC*COS(J91+Beta) -> -33.00981607 | P91: =+Krank*SIN(B91)+AC*SIN(J91+Beta) -> 92.58854751 | Q91: =Krank/Biyel*SIN(B91-K91)/SIN(K91-J91)*$J$1 -> -3.145586001 | R91: =Krank/Sarkac*SIN(B91-J91)/SIN(K91-J91)*$J$1 -> -8.342591435 | S91: =-Krank*$J$1*SIN(B91)-AC*Q91*SIN(J91+Beta) -> 521.2929939 | T91: =+Krank*$J$1*COS(B91)+AC*Q91*COS(J91+Beta) -> 502.2896152
A92: 335 | B92: 5.846852994 | C92: =-Sabit+Krank*COS(B92) -> -38.27922745 | D92: =+Krank*SIN(B92) -> -14.79163916 | E92: 41.03768809 | F92: -2.772852708 | G92: -158.8727574 | H92: =ACOS((E92^2+Sarkac^2-Biyel^2)/2/E92/Sarkac) -> 1.356798378 | I92: =+ACOS((Biyel^2+Sarkac^2-E92^2)/(2*Biyel*Sarkac)) -> 0.703381209 | J92: -4.833032294 | K92: -4.129651085 | L92: 83.08764728 | M92: 123.3884219 | N92: 40.30077466 | O92: =+Krank*COS(B92)+AC*COS(J92+Beta) -> -27.86239997 | P92: =+Krank*SIN(B92)+AC*SIN(J92+Beta) -> 97.36381346 | Q92: =Krank/Biyel*SIN(B92-K92)/SIN(K92-J92)*$J$1 -> -4.574762031 | R92: =Krank/Sarkac*SIN(B92-J92)/SIN(K92-J92)*$J$1 -> -9.185437502 | S92: =-Krank*$J$1*SIN(B92)-AC*Q92*SIN(J92+Beta) -> 661.0008978 | T92: =+Krank*$J$1*COS(B92)+AC*Q92*COS(J92+Beta) -> 589.7865608
A93: 340 | B93: 5.934119457 | C93: =-Sabit+Krank*COS(B93) -> -37.11075827 | D93: =+Krank*SIN(B93) -> -11.97070502 | E93: 38.99366818 | F93: -2.829562914 | G93: -162.1220129 | H93: =ACOS((E93^2+Sarkac^2-Biyel^2)/2/E93/Sarkac) -> 1.383662509 | I93: =+ACOS((Biyel^2+Sarkac^2-E93^2)/(2*Biyel*Sarkac)) -> 0.6661325486 | J93: -4.879357972 | K93: -4.213225424 | L93: 80.43338145 | M93: 118.5999651 | N93: 38.16658363 | O93: =+Krank*COS(B93)+AC*COS(J93+Beta) -> -21.43618825 | P93: =+Krank*SIN(B93)+AC*SIN(J93+Beta) -> 102.8236662 | Q93: =Krank/Biyel*SIN(B93-K93)/SIN(K93-J93)*$J$1 -> -6.041289709 | R93: =Krank/Sarkac*SIN(B93-J93)/SIN(K93-J93)*$J$1 -> -9.946862579 | S93: =-Krank*$J$1*SIN(B93)-AC*Q93*SIN(J93+Beta) -> 813.2131035 | T93: =+Krank*$J$1*COS(B93)+AC*Q93*COS(J93+Beta) -> 657.0880783
A94: 345 | B94: 6.021385919 | C94: =-Sabit+Krank*COS(B94) -> -36.19259608 | D94: =+Krank*SIN(B94) -> -9.058666579 | E94: 37.3090264 | F94: -2.896340504 | G94: -165.9480869 | H94: =ACOS((E94^2+Sarkac^2-Biyel^2)/2/E94/Sarkac) -> 1.40637447 | I94: =+ACOS((Biyel^2+Sarkac^2-E94^2)/(2*Biyel*Sarkac)) -> 0.6355778985 | J94: -4.938292872 | K94: -4.302714973 | L94: 77.05666044 | M94: 113.4725916 | N94: 36.41593114 | O94: =+Krank*COS(B94)+AC*COS(J94+Beta) -> -13.66222947 | P94: =+Krank*SIN(B94)+AC*SIN(J94+Beta) -> 108.7362141 | Q94: =Krank/Biyel*SIN(B94-K94)/SIN(K94-J94)*$J$1 -> -7.44493296 | R94: =Krank/Sarkac*SIN(B94-J94)/SIN(K94-J94)*$J$1 -> -10.52143702 | S94: =-Krank*$J$1*SIN(B94)-AC*Q94*SIN(J94+Beta) -> 967.5616552 | T94: =+Krank*$J$1*COS(B94)+AC*Q94*COS(J94+Beta) -> 691.4822774
A95: 350 | B95: 6.108652382 | C95: =-Sabit+Krank*COS(B95) -> -35.53172864 | D95: =+Krank*SIN(B95) -> -6.077686218 | E95: 36.047774 | F95: -2.972182603 | G95: -170.2935191 | H95: =ACOS((E95^2+Sarkac^2-Biyel^2)/2/E95/Sarkac) -> 1.423774641 | I95: =+ACOS((Biyel^2+Sarkac^2-E95^2)/(2*Biyel*Sarkac)) -> 0.6127792614 | J95: -5.008736506 | K95: -4.395957244 | L95: 73.02053752 | M95: 108.130203 | N95: 35.10966545 | O95: =+Krank*COS(B95)+AC*COS(J95+Beta) -> -4.592592961 | P95: =+Krank*SIN(B95)+AC*SIN(J95+Beta) -> 114.7662167 | Q95: =Krank/Biyel*SIN(B95-K95)/SIN(K95-J95)*$J$1 -> -8.65583664 | R95: =Krank/Sarkac*SIN(B95-J95)/SIN(K95-J95)*$J$1 -> -10.78633185 | S95: =-Krank*$J$1*SIN(B95)-AC*Q95*SIN(J95+Beta) -> 1106.781945 | T95: =+Krank*$J$1*COS(B95)+AC*Q95*COS(J95+Beta) -> 682.7871741
A96: 355 | B96: 6.195918845 | C96: =-Sabit+Krank*COS(B96) -> -35.13318557 | D96: =+Krank*SIN(B96) -> -3.050450996 | E96: 35.26536515 | F96: -3.054984508 | G96: -175.0377188 | H96: =ACOS((E96^2+Sarkac^2-Biyel^2)/2/E96/Sarkac) -> 1.434760986 | I96: =+ACOS((Biyel^2+Sarkac^2-E96^2)/(2*Biyel*Sarkac)) -> 0.5986664699 | J96: -5.088411963 | K96: -4.489745493 | L96: 68.45547009 | M96: 102.7565321 | N96: 34.30106206 | O96: =+Krank*COS(B96)+AC*COS(J96+Beta) -> 5.547976659 | P96: =+Krank*SIN(B96)+AC*SIN(J96+Beta) -> 120.518986 | Q96: =Krank/Biyel*SIN(B96-K96)/SIN(K96-J96)*$J$1 -> -9.540083521 | R96: =Krank/Sarkac*SIN(B96-J96)/SIN(K96-J96)*$J$1 -> -10.63141474 | S96: =-Krank*$J$1*SIN(B96)-AC*Q96*SIN(J96+Beta) -> 1209.367259 | T96: =+Krank*$J$1*COS(B96)+AC*Q96*COS(J96+Beta) -> 628.3723054
A97: 360 | B97: 6.283185307 | C97: =-Sabit+Krank*COS(B97) -> -35 | D97: =+Krank*SIN(B97) -> -8.576039184e-15 | E97: 35 | F97: -3.141592654 | G97: -180 | H97: =ACOS((E97^2+Sarkac^2-Biyel^2)/2/E97/Sarkac) -> 1.438523197 | I97: =+ACOS((Biyel^2+Sarkac^2-E97^2)/(2*Biyel*Sarkac)) -> 0.5938848386 | J97: -5.174000689 | K97: -4.58011585 | L97: 63.55159734 | M97: 97.57869211 | N97: 34.02709477 | O97: =+Krank*COS(B97)+AC*COS(J97+Beta) -> 16.35172612 | P97: =+Krank*SIN(B97)+AC*SIN(J97+Beta) -> 125.623413 | Q97: =Krank/Biyel*SIN(B97-K97)/SIN(K97-J97)*$J$1 -> -10 | R97: =Krank/Sarkac*SIN(B97-J97)/SIN(K97-J97)*$J$1 -> -10 | S97: =-Krank*$J$1*SIN(B97)-AC*Q97*SIN(J97+Beta) -> 1256.23413 | T97: =+Krank*$J$1*COS(B97)+AC*Q97*COS(J97+Beta) -> 536.4827388
